Department Family,Entity,Date Paid,Expense Type,Expense Area,Supplier,Transaction Number,Amount (�),Supplier VAT Registration Number,
BIS,Met Office,2020-09-10,05 CONSULTANTS,BUSINESS GROUP,EARTH WIND FIRE AND WATER,446361,450,243759288,P108199-SERVICE-Provision of consultancy services associated
BIS,Met Office,2020-09-10,SOFTWARE LICENCES,BUSINESS GROUP,Esri (Uk) Ltd,445894,7122.5,787430791,P107979-SERVICE-ArcGIS Image Server
BIS,Met Office,2020-09-17,11 SERVICES,BUSINESS GROUP,NATS (EN ROUTE) PLC,445280,922,440379456004,P108401-SERVICE-Private Circuits for SADIS (NATS to UKMO)
BIS,Met Office,2020-09-17,04 CONTRACTORS,BUSINESS GROUP,SOLOS CONSULTANTS LTD,446479,1785.04,812035476,P108271-SERVICE-Contractor: Anthony Glass
BIS,Met Office,2020-09-17,04 CONTRACTORS,BUSINESS GROUP,SOLOS CONSULTANTS LTD,446479,6741.3,812035476,P107697-SERVICE-Contractor: Anthony Glass
BIS,Met Office,2020-09-10,11 SERVICES,BUSINESS GROUP,SPOKE (INTERACTIVE) LTD,446388,700,840156451,P108137-SERVICE-Talk to a Forecaster Service including call c
BIS,Met Office,2020-09-24,06 ACCOMMODATION,CHIEF FINANCIAL OFFICER,A & J GARDEN SERVICES LTD,446692,110,190817003,P107808-SERVICE-Ravensworth
BIS,Met Office,2020-09-24,06 ACCOMMODATION,CHIEF FINANCIAL OFFICER,A & J GARDEN SERVICES LTD,446692,144,190817003,P107808-SERVICE-Albermarle
BIS,Met Office,2020-09-24,06 ACCOMMODATION,CHIEF FINANCIAL OFFICER,A & J GARDEN SERVICES LTD,446692,156,190817003,P107808-SERVICE-Bingley
BIS,Met Office,2020-09-24,06 ACCOMMODATION,CHIEF FINANCIAL OFFICER,A & J GARDEN SERVICES LTD,446692,156,190817003,P107808-SERVICE-Bridlington
BIS,Met Office,2020-09-24,06 ACCOMMODATION,CHIEF FINANCIAL OFFICER,A & J GARDEN SERVICES LTD,446692,156,190817003,P107808-SERVICE-Emley Moor
BIS,Met Office,2020-09-24,06 ACCOMMODATION,CHIEF FINANCIAL OFFICER,A & J GARDEN SERVICES LTD,446692,156,190817003,P107808-SERVICE-Loftus
BIS,Met Office,2020-09-24,06 ACCOMMODATION,CHIEF FINANCIAL OFFICER,A & J GARDEN SERVICES LTD,446692,156,190817003,P107808-SERVICE-Pately
BIS,Met Office,2020-09-24,06 ACCOMMODATION,CHIEF FINANCIAL OFFICER,A & J GARDEN SERVICES LTD,446692,156,190817003,P107808-SERVICE-Scarborough
BIS,Met Office,2020-09-24,06 ACCOMMODATION,CHIEF FINANCIAL OFFICER,A & J GARDEN SERVICES LTD,446692,200,190817003,P107808-SERVICE-Bishopton
BIS,Met Office,2020-09-24,06 ACCOMMODATION,CHIEF FINANCIAL OFFICER,A & J GARDEN SERVICES LTD,446692,200,190817003,P107808-SERVICE-Charterhall
BIS,Met Office,2020-09-24,06 ACCOMMODATION,CHIEF FINANCIAL OFFICER,A & J GARDEN SERVICES LTD,446692,200,190817003,P107808-SERVICE-Drumalbin
BIS,Met Office,2020-09-24,06 ACCOMMODATION,CHIEF FINANCIAL OFFICER,A & J GARDEN SERVICES LTD,446692,200,190817003,P107808-SERVICE-Dunstaffnage
BIS,Met Office,2020-09-24,06 ACCOMMODATION,CHIEF FINANCIAL OFFICER,A & J GARDEN SERVICES LTD,446692,200,190817003,P107808-SERVICE-Gogarbank
BIS,Met Office,2020-09-24,06 ACCOMMODATION,CHIEF FINANCIAL OFFICER,A & J GARDEN SERVICES LTD,446692,200,190817003,P107808-SERVICE-Salsburgh
BIS,Met Office,2020-09-24,06 ACCOMMODATION,CHIEF FINANCIAL OFFICER,A & J GARDEN SERVICES LTD,446692,200,190817003,P107808-SERVICE-West Freugh
BIS,Met Office,2020-09-24,06 ACCOMMODATION,CHIEF FINANCIAL OFFICER,A & J GARDEN SERVICES LTD,446692,330,190817003,P107808-SERVICE-Altnaharra
BIS,Met Office,2020-09-03,06 ACCOMMODATION,CHIEF FINANCIAL OFFICER,ABOVE THE REST COMMERCIAL CLEANING LTD,442944,565,166969348,P107759-SERVICE-Cleaning - 2020
BIS,Met Office,2020-09-03,06 ACCOMMODATION,CHIEF FINANCIAL OFFICER,ABOVE THE REST COMMERCIAL CLEANING LTD,445493,565,166969348,P107759-SERVICE-Cleaning - 2020
BIS,Met Office,2020-09-17,06 ACCOMMODATION,CHIEF FINANCIAL OFFICER,ABOVE THE REST COMMERCIAL CLEANING LTD,446627,565,166969348,P107759-SERVICE-Cleaning - 2020
BIS,Met Office,2020-09-17,11 SERVICES,CHIEF FINANCIAL OFFICER,ACTIVE PEST MANAGEMENT,446526,86.1,791419116,-
BIS,Met Office,2020-09-10,11 SERVICES,CHIEF FINANCIAL OFFICER,ADAM PHONES LTD,446414,353.4,538877093,P105849-SERVICE-Satellite phone charges for percieved usage.
BIS,Met Office,2020-09-03,11 SERVICES,CHIEF FINANCIAL OFFICER,ALLSTAR BUSINESS SOLUTIONS LTD,446203,1770.19,747880191,C008289-SERVICE-Fuel cards services to cover FY20/21 as per c
BIS,Met Office,2020-09-24,11 SERVICES,CHIEF FINANCIAL OFFICER,ALLSTAR BUSINESS SOLUTIONS LTD,446786,2099.63,747880191,C008289-SERVICE-Fuel cards services to cover FY20/21 as per c
BIS,Met Office,2020-09-17,11 SERVICES,CHIEF FINANCIAL OFFICER,ANVIL MOBILE LIMITED,446528,320.47,981686175,P107385-SERVICE-EE 4G SIM 20GB data allowance (12 months rent
BIS,Met Office,2020-09-24,13 MISCELLANEOUS,CHIEF FINANCIAL OFFICER,ARTHUR J. GALLAGHER INSURANCE BROKERS LIMITED,446953,42256.48,GB484746209,P106673-SERVICE-Corporate Insurance 2019-2022
BIS,Met Office,2020-09-24,13 MISCELLANEOUS,CHIEF FINANCIAL OFFICER,ARTHUR J. GALLAGHER INSURANCE BROKERS LIMITED,446952,151760,GB484746209,P106673-SERVICE-Corporate Insurance 2019-2022
BIS,Met Office,2020-09-24,13 MISCELLANEOUS,CHIEF FINANCIAL OFFICER,Belfast International Airport Ltd,446694,1452.24,617777601,-
BIS,Met Office,2020-09-24,06 ACCOMMODATION,CHIEF FINANCIAL OFFICER,BIDVEST NOONAN UK LTD,446696,387.16,GB847176988,P108467-SERVICE-Met Office Lathom - Cleaning
BIS,Met Office,2020-09-10,06 ACCOMMODATION,CHIEF FINANCIAL OFFICER,BIDVEST NOONAN UK LTD,446429,387.96,GB847176988,P108467-SERVICE-Met Office Lathom - Cleaning
BIS,Met Office,2020-09-17,06 ACCOMMODATION,CHIEF FINANCIAL OFFICER,Biffa Waste Services Ltd,446656,262.47,537911627,-
BIS,Met Office,2020-09-03,06 ACCOMMODATION,CHIEF FINANCIAL OFFICER,BRITISH GAS TRADING LTD,446149,203.75,684966762,-
BIS,Met Office,2020-09-17,11 SERVICES,CHIEF FINANCIAL OFFICER,BT CONFERENCING,446639,189.58,245719348,-
BIS,Met Office,2020-09-24,11 SERVICES,CHIEF FINANCIAL OFFICER,BT GLOBAL SERVICES,446885,15155.36,245719348,-
BIS,Met Office,2020-09-03,11 SERVICES,CHIEF FINANCIAL OFFICER,BT GLOBAL SERVICES,445903,15173.97,245719348,-
BIS,Met Office,2020-09-24,11 SERVICES,CHIEF FINANCIAL OFFICER,BT GLOBAL SERVICES,446886,15616.32,245719348,-
BIS,Met Office,2020-09-24,11 SERVICES,CHIEF FINANCIAL OFFICER,BT GLOBAL SERVICES,446857,16853.07,245719348,-
BIS,Met Office,2020-09-23,11 SERVICES,CHIEF FINANCIAL OFFICER,BT PLC,440706,-32670.79,245719348,-
BIS,Met Office,2020-09-23,11 SERVICES,CHIEF FINANCIAL OFFICER,BT PLC,440707,-32670.79,245719348,-
BIS,Met Office,2020-09-23,11 SERVICES,CHIEF FINANCIAL OFFICER,BT PLC,445004,388.09,245719348,P103004-SERVICE-1Gbps internet (primary / secondary) connecti
BIS,Met Office,2020-09-23,11 SERVICES,CHIEF FINANCIAL OFFICER,BT PLC,441600,429.66,245719348,-
BIS,Met Office,2020-09-24,11 SERVICES,CHIEF FINANCIAL OFFICER,BT PLC,445153,3083.59,245719348,-
BIS,Met Office,2020-09-03,11 SERVICES,CHIEF FINANCIAL OFFICER,BT PLC,446168,3083.86,245719348,-
BIS,Met Office,2020-09-24,11 SERVICES,CHIEF FINANCIAL OFFICER,BT PLC,446006,13046.27,245719348,-
BIS,Met Office,2020-09-24,11 SERVICES,CHIEF FINANCIAL OFFICER,BT PLC,445001,15222.47,245719348,-
BIS,Met Office,2020-09-24,11 SERVICES,CHIEF FINANCIAL OFFICER,BT PLC,440355,15410.65,245719348,-
BIS,Met Office,2020-09-24,06 ACCOMMODATION,CHIEF FINANCIAL OFFICER,CALOR GAS LIMITED,446755,281.62,207610984,P013768-SERVICE-Camborne Gas provision 2013 - 2016 DP83173029
BIS,Met Office,2020-09-24,06 ACCOMMODATION,CHIEF FINANCIAL OFFICER,Cameron Landscapes Ltd,447019,-2239,251857938,P107753-SERVICE-Aldergrove - 2020
BIS,Met Office,2020-09-24,06 ACCOMMODATION,CHIEF FINANCIAL OFFICER,Cameron Landscapes Ltd,447019,-1000,251857938,P107753-SERVICE-Ballypatrick - 2020
BIS,Met Office,2020-09-24,06 ACCOMMODATION,CHIEF FINANCIAL OFFICER,Cameron Landscapes Ltd,447019,-1000,251857938,P107753-SERVICE-Castlederg - 2020
BIS,Met Office,2020-09-24,06 ACCOMMODATION,CHIEF FINANCIAL OFFICER,Cameron Landscapes Ltd,447019,-1000,251857938,P107753-SERVICE-Glenanne - 2020
BIS,Met Office,2020-09-24,06 ACCOMMODATION,CHIEF FINANCIAL OFFICER,Cameron Landscapes Ltd,447019,-1000,251857938,P107753-SERVICE-Katesbridge  - 2020
BIS,Met Office,2020-09-24,06 ACCOMMODATION,CHIEF FINANCIAL OFFICER,Cameron Landscapes Ltd,447019,-1000,251857938,P107753-SERVICE-Killowen - 2020
BIS,Met Office,2020-09-24,06 ACCOMMODATION,CHIEF FINANCIAL OFFICER,Cameron Landscapes Ltd,447019,-1000,251857938,P107753-SERVICE-Lough Fea - 2020
BIS,Met Office,2020-09-24,06 ACCOMMODATION,CHIEF FINANCIAL OFFICER,Cameron Landscapes Ltd,447019,-1000,251857938,P107753-SERVICE-Portglenone - 2020
BIS,Met Office,2020-09-24,06 ACCOMMODATION,CHIEF FINANCIAL OFFICER,Cameron Landscapes Ltd,447019,-1000,251857938,P107753-SERVICE-Thomastown - 2020
BIS,Met Office,2020-09-24,06 ACCOMMODATION,CHIEF FINANCIAL OFFICER,Cameron Landscapes Ltd,446699,1000,251857938,P107753-SERVICE-Ballypatrick - 2020
BIS,Met Office,2020-09-24,06 ACCOMMODATION,CHIEF FINANCIAL OFFICER,Cameron Landscapes Ltd,446699,1000,251857938,P107753-SERVICE-Castlederg - 2020
BIS,Met Office,2020-09-24,06 ACCOMMODATION,CHIEF FINANCIAL OFFICER,Cameron Landscapes Ltd,446699,1000,251857938,P107753-SERVICE-Glenanne - 2020
BIS,Met Office,2020-09-24,06 ACCOMMODATION,CHIEF FINANCIAL OFFICER,Cameron Landscapes Ltd,446699,1000,251857938,P107753-SERVICE-Katesbridge  - 2020
BIS,Met Office,2020-09-24,06 ACCOMMODATION,CHIEF FINANCIAL OFFICER,Cameron Landscapes Ltd,446699,1000,251857938,P107753-SERVICE-Killowen - 2020
BIS,Met Office,2020-09-24,06 ACCOMMODATION,CHIEF FINANCIAL OFFICER,Cameron Landscapes Ltd,446699,1000,251857938,P107753-SERVICE-Lough Fea - 2020
BIS,Met Office,2020-09-24,06 ACCOMMODATION,CHIEF FINANCIAL OFFICER,Cameron Landscapes Ltd,446699,1000,251857938,P107753-SERVICE-Portglenone - 2020
BIS,Met Office,2020-09-24,06 ACCOMMODATION,CHIEF FINANCIAL OFFICER,Cameron Landscapes Ltd,446699,1000,251857938,P107753-SERVICE-Thomastown - 2020
BIS,Met Office,2020-09-24,06 ACCOMMODATION,CHIEF FINANCIAL OFFICER,Cameron Landscapes Ltd,447018,1000,251857938,P107753-SERVICE-Ballypatrick - 2020
BIS,Met Office,2020-09-24,06 ACCOMMODATION,CHIEF FINANCIAL OFFICER,Cameron Landscapes Ltd,447018,1000,251857938,P107753-SERVICE-Castlederg - 2020
BIS,Met Office,2020-09-24,06 ACCOMMODATION,CHIEF FINANCIAL OFFICER,Cameron Landscapes Ltd,447018,1000,251857938,P107753-SERVICE-Glenanne - 2020
BIS,Met Office,2020-09-24,06 ACCOMMODATION,CHIEF FINANCIAL OFFICER,Cameron Landscapes Ltd,447018,1000,251857938,P107753-SERVICE-Katesbridge  - 2020
BIS,Met Office,2020-09-24,06 ACCOMMODATION,CHIEF FINANCIAL OFFICER,Cameron Landscapes Ltd,447018,1000,251857938,P107753-SERVICE-Killowen - 2020
BIS,Met Office,2020-09-24,06 ACCOMMODATION,CHIEF FINANCIAL OFFICER,Cameron Landscapes Ltd,447018,1000,251857938,P107753-SERVICE-Lough Fea - 2020
BIS,Met Office,2020-09-24,06 ACCOMMODATION,CHIEF FINANCIAL OFFICER,Cameron Landscapes Ltd,447018,1000,251857938,P107753-SERVICE-Portglenone - 2020
BIS,Met Office,2020-09-24,06 ACCOMMODATION,CHIEF FINANCIAL OFFICER,Cameron Landscapes Ltd,447018,1000,251857938,P107753-SERVICE-Thomastown - 2020
BIS,Met Office,2020-09-24,06 ACCOMMODATION,CHIEF FINANCIAL OFFICER,Cameron Landscapes Ltd,446699,2239,251857938,P107753-SERVICE-Aldergrove - 2020
BIS,Met Office,2020-09-24,06 ACCOMMODATION,CHIEF FINANCIAL OFFICER,Cameron Landscapes Ltd,447018,2239,251857938,P107753-SERVICE-Aldergrove - 2020
BIS,Met Office,2020-09-17,13 MISCELLANEOUS,CHIEF FINANCIAL OFFICER,CANON UK LTD,446657,546.84,523797128,P104616-SERVICE-MFD for
BIS,Met Office,2020-09-17,13 MISCELLANEOUS,CHIEF FINANCIAL OFFICER,CANON UK LTD,446628,11812.72,523797128,P102711-SERVICE-Exeter MFD Renewal_FY2020-21 Lease/Software/E
BIS,Met Office,2020-09-30,06 ACCOMMODATION,CHIEF FINANCIAL OFFICER,CBRE MANAGED SERVICES LTD,447127,109.5,853936883,P108486-SERVICE-Frontline Maintenance Other Amounts - 09/2020
BIS,Met Office,2020-09-24,06 ACCOMMODATION,CHIEF FINANCIAL OFFICER,CBRE MANAGED SERVICES LTD,446784,13827.17,853936883,P108063-SERVICE-Air Chiller B3 Corrective Maintenance
BIS,Met Office,2020-09-30,06 ACCOMMODATION,CHIEF FINANCIAL OFFICER,CBRE MANAGED SERVICES LTD,447128,15000,853936883,P108485-SERVICE-Frontline Maintenance Mobilisation
BIS,Met Office,2020-09-24,PLANT AND EQUIPMENT,CHIEF FINANCIAL OFFICER,CBRE MANAGED SERVICES LTD,446943,26419.8,853936883,P108253-SERVICE-Exeter - Install 8 Additional Electric Car Ch
BIS,Met Office,2020-09-30,06 ACCOMMODATION,CHIEF FINANCIAL OFFICER,CBRE MANAGED SERVICES LTD,447129,39784.11,853936883,C008361-SERVICE-Frontline Maintenance PSPD - 09/2020 - 03/202
BIS,Met Office,2020-09-24,06 ACCOMMODATION,CHIEF FINANCIAL OFFICER,CBRE MANAGED SERVICES LTD,446944,50121.75,853936883,C008301-SERVICE-Other amounts
BIS,Met Office,2020-09-10,06 ACCOMMODATION,CHIEF FINANCIAL OFFICER,CBRE MANAGED SERVICES LTD,446138,54212.33,853936883,P108478-SERVICE-HQ 100k Litres Fuel Top Up for Generators
BIS,Met Office,2020-09-24,06 ACCOMMODATION,CHIEF FINANCIAL OFFICER,CBRE MANAGED SERVICES LTD,446945,141916.1,853936883,C008301-SERVICE-Payment for services provided to date
BIS,Met Office,2020-09-24,08 SOFTWARE LICENCES,CHIEF FINANCIAL OFFICER,CEMAR,446987,180,915042161,P107463-SERVICE-CEMAR Establishment of 1 NEC3_TSC MO Contract
BIS,Met Office,2020-09-10,08 SOFTWARE LICENCES,CHIEF FINANCIAL OFFICER,CEMAR,446176,450,915042161,P108259-SERVICE-CEMAR �Software as a Service�
BIS,Met Office,2020-09-24,08 SOFTWARE LICENCES,CHIEF FINANCIAL OFFICER,CEMAR,446986,450,915042161,P108259-SERVICE-CEMAR �Software as a Service�
BIS,Met Office,2020-09-30,11 SERVICES,CHIEF FINANCIAL OFFICER,CMC Partnership Global,447167,6076,303694803,P108495-SERVICE-Manager Sponsor Workshops (November 2020)
BIS,Met Office,2020-09-24,06 ACCOMMODATION,CHIEF FINANCIAL OFFICER,Comhairle Nan Eilean Siar,446853,3884.4,267799485,-
BIS,Met Office,2020-09-30,06 ACCOMMODATION,CHIEF FINANCIAL OFFICER,CORNWALL FLYING CLUB LTD,447139,20,313291390,-
BIS,Met Office,2020-09-17,06 ACCOMMODATION,CHIEF FINANCIAL OFFICER,CORONA ENERGY LTD,446641,10362.92,577704800,-
BIS,Met Office,2020-09-24,06 ACCOMMODATION,CHIEF FINANCIAL OFFICER,COUNTRYWIDE GROUNDS MAINTENANCE LTD,446701,40.37,611731279,P107761-SERVICE-Herstmonceux
BIS,Met Office,2020-09-24,06 ACCOMMODATION,CHIEF FINANCIAL OFFICER,COUNTRYWIDE GROUNDS MAINTENANCE LTD,446701,61.68,611731279,P107761-SERVICE-Almondsbury
BIS,Met Office,2020-09-24,06 ACCOMMODATION,CHIEF FINANCIAL OFFICER,COUNTRYWIDE GROUNDS MAINTENANCE LTD,446701,124.82,611731279,P107761-SERVICE-Andrewsfield
BIS,Met Office,2020-09-24,06 ACCOMMODATION,CHIEF FINANCIAL OFFICER,COUNTRYWIDE GROUNDS MAINTENANCE LTD,446701,133.12,611731279,P107761-SERVICE-Pershore
BIS,Met Office,2020-09-24,06 ACCOMMODATION,CHIEF FINANCIAL OFFICER,COUNTRYWIDE GROUNDS MAINTENANCE LTD,446701,133.12,611731279,P107761-SERVICE-Ross on Wye
BIS,Met Office,2020-09-24,06 ACCOMMODATION,CHIEF FINANCIAL OFFICER,COUNTRYWIDE GROUNDS MAINTENANCE LTD,446701,134.62,611731279,P107761-SERVICE-Iver
BIS,Met Office,2020-09-24,06 ACCOMMODATION,CHIEF FINANCIAL OFFICER,COUNTRYWIDE GROUNDS MAINTENANCE LTD,446701,137.64,611731279,P107761-SERVICE-Cippenham
BIS,Met Office,2020-09-24,06 ACCOMMODATION,CHIEF FINANCIAL OFFICER,COUNTRYWIDE GROUNDS MAINTENANCE LTD,446701,138.78,611731279,P107761-SERVICE-Charlwood
BIS,Met Office,2020-09-24,06 ACCOMMODATION,CHIEF FINANCIAL OFFICER,COUNTRYWIDE GROUNDS MAINTENANCE LTD,446701,143.92,611731279,P107761-SERVICE-Plymouth
BIS,Met Office,2020-09-24,06 ACCOMMODATION,CHIEF FINANCIAL OFFICER,COUNTRYWIDE GROUNDS MAINTENANCE LTD,446701,157.04,611731279,P107761-SERVICE-Shobdon Airfield
BIS,Met Office,2020-09-24,06 ACCOMMODATION,CHIEF FINANCIAL OFFICER,COUNTRYWIDE GROUNDS MAINTENANCE LTD,446701,160.34,611731279,P107761-SERVICE-Braemar
BIS,Met Office,2020-09-24,06 ACCOMMODATION,CHIEF FINANCIAL OFFICER,COUNTRYWIDE GROUNDS MAINTENANCE LTD,446701,161.98,611731279,P107761-SERVICE-Kenley
BIS,Met Office,2020-09-24,06 ACCOMMODATION,CHIEF FINANCIAL OFFICER,COUNTRYWIDE GROUNDS MAINTENANCE LTD,446701,163.36,611731279,P107761-SERVICE-Inververbie
BIS,Met Office,2020-09-24,06 ACCOMMODATION,CHIEF FINANCIAL OFFICER,COUNTRYWIDE GROUNDS MAINTENANCE LTD,446701,193.26,611731279,P107761-SERVICE-Dunkeswell
BIS,Met Office,2020-09-24,06 ACCOMMODATION,CHIEF FINANCIAL OFFICER,COUNTRYWIDE GROUNDS MAINTENANCE LTD,446701,201.48,611731279,P107761-SERVICE-Liscombe
BIS,Met Office,2020-09-24,06 ACCOMMODATION,CHIEF FINANCIAL OFFICER,COUNTRYWIDE GROUNDS MAINTENANCE LTD,446701,201.48,611731279,P107761-SERVICE-Okement Farm
BIS,Met Office,2020-09-24,06 ACCOMMODATION,CHIEF FINANCIAL OFFICER,COUNTRYWIDE GROUNDS MAINTENANCE LTD,446701,228,611731279,P107761-SERVICE-Cardinham
BIS,Met Office,2020-09-24,06 ACCOMMODATION,CHIEF FINANCIAL OFFICER,COUNTRYWIDE GROUNDS MAINTENANCE LTD,446701,263.62,611731279,P107761-SERVICE-Sennybridge
BIS,Met Office,2020-09-24,06 ACCOMMODATION,CHIEF FINANCIAL OFFICER,COUNTRYWIDE GROUNDS MAINTENANCE LTD,446701,264.34,611731279,P107761-SERVICE-Heathrow
BIS,Met Office,2020-09-24,06 ACCOMMODATION,CHIEF FINANCIAL OFFICER,COUNTRYWIDE GROUNDS MAINTENANCE LTD,446701,352.58,611731279,P107761-SERVICE-High Beach
BIS,Met Office,2020-09-24,06 ACCOMMODATION,CHIEF FINANCIAL OFFICER,COUNTRYWIDE GROUNDS MAINTENANCE LTD,446701,396.05,611731279,P107761-SERVICE-Strathallen
BIS,Met Office,2020-09-17,06 ACCOMMODATION,CHIEF FINANCIAL OFFICER,D&G OFFICE SERVICES LTD,446513,284.37,272997547,P108183-SERVICE-Furniture storage August 2020
BIS,Met Office,2020-09-17,06 ACCOMMODATION,CHIEF FINANCIAL OFFICER,D&G OFFICE SERVICES LTD,446513,284.37,272997547,P108183-SERVICE-Furniture storage July 2020
BIS,Met Office,2020-09-17,06 ACCOMMODATION,CHIEF FINANCIAL OFFICER,D&G OFFICE SERVICES LTD,446513,284.38,272997547,P108183-SERVICE-Furniture storage June 2020
BIS,Met Office,2020-09-24,11 SERVICES,CHIEF FINANCIAL OFFICER,DBS FINANCE RECEIPTS CTS,446927,-195.18,888805068,-
BIS,Met Office,2020-09-02,11 SERVICES,CHIEF FINANCIAL OFFICER,DBS FINANCE RECEIPTS CTS,21751,176.16,888805068,-
BIS,Met Office,2020-09-09,11 SERVICES,CHIEF FINANCIAL OFFICER,DBS FINANCE RECEIPTS CTS,21759,176.16,888805068,-
BIS,Met Office,2020-09-09,11 SERVICES,CHIEF FINANCIAL OFFICER,DBS FINANCE RECEIPTS CTS,21761,176.16,888805068,-
BIS,Met Office,2020-09-17,11 SERVICES,CHIEF FINANCIAL OFFICER,DBS FINANCE RECEIPTS CTS,446658,178.66,888805068,-
BIS,Met Office,2020-09-23,11 SERVICES,CHIEF FINANCIAL OFFICER,DBS FINANCE RECEIPTS CTS,21784,180.22,888805068,-
BIS,Met Office,2020-09-23,11 SERVICES,CHIEF FINANCIAL OFFICER,DBS FINANCE RECEIPTS CTS,21785,180.22,888805068,-
BIS,Met Office,2020-09-24,11 SERVICES,CHIEF FINANCIAL OFFICER,DBS FINANCE RECEIPTS CTS,447033,195.18,888805068,-
BIS,Met Office,2020-09-30,13 MISCELLANEOUS,CHIEF FINANCIAL OFFICER,DEMSTAR BUSINESS SOLUTIONS LTD,21771,182.69,10156145J,-
BIS,Met Office,2020-09-02,13 MISCELLANEOUS,CHIEF FINANCIAL OFFICER,DEMSTAR BUSINESS SOLUTIONS LTD,21714,246.82,10156145J,-
BIS,Met Office,2020-09-30,11 SERVICES,CHIEF FINANCIAL OFFICER,DIGITAL COMMUNICATIONS SYSTEMS LIMITED,447034,4328.19,GB 556 1971 19,P105610-SERVICE-PABX ISDN lines+support+calls to end 2020
BIS,Met Office,2020-09-03,11 SERVICES,CHIEF FINANCIAL OFFICER,DIGITAL COMMUNICATIONS SYSTEMS LIMITED,446261,5716.18,GB 556 1971 19,P105610-SERVICE-PABX ISDN lines+support+calls to end 2020
BIS,Met Office,2020-09-10,13 MISCELLANEOUS,CHIEF FINANCIAL OFFICER,DWYFOR COFFEE COMPANY LTD,446242,30.18,559811116,P014775-SERVICE-RAF Valley - Water Cooler
BIS,Met Office,2020-09-03,13 MISCELLANEOUS,CHIEF FINANCIAL OFFICER,EAST ANGLIAN WATER COOLER CO,446179,37.1,676668178,P105778-SERVICE-Wattisham Watercooler Cooler
BIS,Met Office,2020-09-17,13 MISCELLANEOUS,CHIEF FINANCIAL OFFICER,EDEN SPRINGS UK LTD,446659,369.21,232160411,P104983-SERVICE-Water Coolers - Military
BIS,Met Office,2020-09-17,06 ACCOMMODATION,CHIEF FINANCIAL OFFICER,EDF ENERGY CUSTOMERS PLC,446630,-127195.02,523041202,-
BIS,Met Office,2020-09-17,06 ACCOMMODATION,CHIEF FINANCIAL OFFICER,EDF ENERGY CUSTOMERS PLC,446638,-111961.25,523041202,-
BIS,Met Office,2020-09-03,06 ACCOMMODATION,CHIEF FINANCIAL OFFICER,EDF ENERGY CUSTOMERS PLC,446009,-109708.06,523041202,-
BIS,Met Office,2020-09-03,06 ACCOMMODATION,CHIEF FINANCIAL OFFICER,EDF ENERGY CUSTOMERS PLC,446007,-91531.86,523041202,-
BIS,Met Office,2020-09-17,06 ACCOMMODATION,CHIEF FINANCIAL OFFICER,EDF ENERGY CUSTOMERS PLC,446637,-90175.11,523041202,-
BIS,Met Office,2020-09-03,06 ACCOMMODATION,CHIEF FINANCIAL OFFICER,EDF ENERGY CUSTOMERS PLC,445511,2448.95,523041202,-
BIS,Met Office,2020-09-24,06 ACCOMMODATION,CHIEF FINANCIAL OFFICER,EDF ENERGY CUSTOMERS PLC,446751,2683.73,523041202,-
BIS,Met Office,2020-09-03,06 ACCOMMODATION,CHIEF FINANCIAL OFFICER,EDF ENERGY CUSTOMERS PLC,445852,2740.25,523041202,-
BIS,Met Office,2020-09-03,06 ACCOMMODATION,CHIEF FINANCIAL OFFICER,EDF ENERGY CUSTOMERS PLC,446017,107891.66,523041202,-
BIS,Met Office,2020-09-17,06 ACCOMMODATION,CHIEF FINANCIAL OFFICER,EDF ENERGY CUSTOMERS PLC,446455,123189.35,523041202,-
BIS,Met Office,2020-09-03,06 ACCOMMODATION,CHIEF FINANCIAL OFFICER,EDF ENERGY CUSTOMERS PLC,445853,127195.02,523041202,-
BIS,Met Office,2020-09-17,06 ACCOMMODATION,CHIEF FINANCIAL OFFICER,EDF ENERGY CUSTOMERS PLC,446456,148555.93,523041202,-
BIS,Met Office,2020-09-17,06 ACCOMMODATION,CHIEF FINANCIAL OFFICER,EDF ENERGY CUSTOMERS PLC,446457,298945.63,523041202,-
BIS,Met Office,2020-09-02,11 SERVICES,CHIEF FINANCIAL OFFICER,EIR,21749,55.02,4736919B,-
BIS,Met Office,2020-09-30,11 SERVICES,CHIEF FINANCIAL OFFICER,EIR,21811,55.79,4736919B,P106081-SERVICE-EIR - Continaution of Account: 55416500
BIS,Met Office,2020-09-24,03 STAFF COSTS T&S,CHIEF FINANCIAL OFFICER,ENTERPRISE RENT A CAR UK LTD,447008,291.54,215557314,P101665-SERVICE-This Purchase order is issued in accordance w
BIS,Met Office,2020-09-17,03 STAFF COSTS T&S,CHIEF FINANCIAL OFFICER,ENTERPRISE RENT A CAR UK LTD,446705,423.64,215557314,P101665-SERVICE-This Purchase order is issued in accordance w
BIS,Met Office,2020-09-03,03 STAFF COSTS T&S,CHIEF FINANCIAL OFFICER,ENTERPRISE RENT A CAR UK LTD,446177,490.62,215557314,P101665-SERVICE-This Purchase order is issued in accordance w
BIS,Met Office,2020-09-03,03 STAFF COSTS T&S,CHIEF FINANCIAL OFFICER,ENTERPRISE RENT A CAR UK LTD,446240,621.59,215557314,P101665-SERVICE-This Purchase order is issued in accordance w
BIS,Met Office,2020-09-17,03 STAFF COSTS T&S,CHIEF FINANCIAL OFFICER,ENTERPRISE RENT A CAR UK LTD,446704,665.53,215557314,P101665-SERVICE-This Purchase order is issued in accordance w
BIS,Met Office,2020-09-10,03 STAFF COSTS T&S,CHIEF FINANCIAL OFFICER,ENTERPRISE RENT A CAR UK LTD,446399,754.07,215557314,P101665-SERVICE-This Purchase order is issued in accordance w
BIS,Met Office,2020-09-24,03 STAFF COSTS T&S,CHIEF FINANCIAL OFFICER,ENTERPRISE RENT A CAR UK LTD,447007,873.68,215557314,P101665-SERVICE-This Purchase order is issued in accordance w
BIS,Met Office,2020-09-30,03 STAFF COSTS T&S,CHIEF FINANCIAL OFFICER,ENTERPRISE RENT A CAR UK LTD,447147,1271.44,215557314,P101665-SERVICE-This Purchase order is issued in accordance w
BIS,Met Office,2020-09-10,06 ACCOMMODATION,CHIEF FINANCIAL OFFICER,Exeter & Devon Airport Limited,446443,500,168173978,-
BIS,Met Office,2020-09-24,06 ACCOMMODATION,CHIEF FINANCIAL OFFICER,Exeter City Council,440195,140288,142335594,-
BIS,Met Office,2020-09-10,11 SERVICES,CHIEF FINANCIAL OFFICER,EXPONENTIAL-E,446391,3142.93,GB798572653,P104020-SERVICE-Phone numbers + SIP trunks and Service Nov 20
BIS,Met Office,2020-09-10,11 SERVICES,CHIEF FINANCIAL OFFICER,EXPONENTIAL-E,446196,5620,GB798572653,P104020-SERVICE-Phone numbers + SIP trunks and Service Nov 20
BIS,Met Office,2020-09-30,FIXTURE & FITTINGS,CHIEF FINANCIAL OFFICER,FMS INTERIOR SERVICES LTD,443095,29.76,922056940,C008265-SERVICE-CMD 440371 Contour C clamp
BIS,Met Office,2020-09-30,FIXTURE & FITTINGS,CHIEF FINANCIAL OFFICER,FMS INTERIOR SERVICES LTD,443095,58,922056940,C008265-SERVICE-Spice bistro chair - Anthracite
BIS,Met Office,2020-09-30,FIXTURE & FITTINGS,CHIEF FINANCIAL OFFICER,FMS INTERIOR SERVICES LTD,443095,62,922056940,C008265-SERVICE-Rectangular desk top (1600x800mm) - Romana Ch
BIS,Met Office,2020-09-30,FIXTURE & FITTINGS,CHIEF FINANCIAL OFFICER,FMS INTERIOR SERVICES LTD,443095,72,922056940,C008265-SERVICE-CMD 92K002GST 92 series Elite+ under desk mod
BIS,Met Office,2020-09-30,FIXTURE & FITTINGS,CHIEF FINANCIAL OFFICER,FMS INTERIOR SERVICES LTD,443095,82,922056940,C008265-SERVICE-Coat & umbrella stand - black
BIS,Met Office,2020-09-30,FIXTURE & FITTINGS,CHIEF FINANCIAL OFFICER,FMS INTERIOR SERVICES LTD,443095,84.71,922056940,C008265-SERVICE-Rectangular desk (1000x600mm) - Romana Cherry
BIS,Met Office,2020-09-30,FIXTURE & FITTINGS,CHIEF FINANCIAL OFFICER,FMS INTERIOR SERVICES LTD,443095,89.12,922056940,C008265-SERVICE-Slinkies - spiral cable spine - white
BIS,Met Office,2020-09-30,FIXTURE & FITTINGS,CHIEF FINANCIAL OFFICER,FMS INTERIOR SERVICES LTD,443095,109.48,922056940,C008265-SERVICE-Delivery (only) to Huddersfield.
BIS,Met Office,2020-09-30,FIXTURE & FITTINGS,CHIEF FINANCIAL OFFICER,FMS INTERIOR SERVICES LTD,443095,127.92,922056940,C008265-SERVICE-800mm long Fusion cable basket - complete wit
BIS,Met Office,2020-09-30,FIXTURE & FITTINGS,CHIEF FINANCIAL OFFICER,FMS INTERIOR SERVICES LTD,443095,144.72,922056940,C008265-SERVICE-CMD 94050005 94 series Contour desk top modul
BIS,Met Office,2020-09-30,FIXTURE & FITTINGS,CHIEF FINANCIAL OFFICER,FMS INTERIOR SERVICES LTD,443095,145,922056940,C008265-SERVICE-Pedestal (430x600x720mm) - Romana Cherry
BIS,Met Office,2020-09-30,FIXTURE & FITTINGS,CHIEF FINANCIAL OFFICER,FMS INTERIOR SERVICES LTD,443095,157,922056940,C008265-SERVICE-Pedestal (430x800x720mm) - Romana Cherry
BIS,Met Office,2020-09-30,FIXTURE & FITTINGS,CHIEF FINANCIAL OFFICER,FMS INTERIOR SERVICES LTD,443095,174,922056940,C008265-SERVICE-Rectangular coffee table (W1000 x D600 x H400
BIS,Met Office,2020-09-30,FIXTURE & FITTINGS,CHIEF FINANCIAL OFFICER,FMS INTERIOR SERVICES LTD,443095,188.55,922056940,C008265-SERVICE-Circular table (Dia800mm x  H730mm) - Romana
BIS,Met Office,2020-09-30,FIXTURE & FITTINGS,CHIEF FINANCIAL OFFICER,FMS INTERIOR SERVICES LTD,443095,190.58,922056940,C008265-SERVICE-Rectangular desk (1200x800mm) - Romana Cherry
BIS,Met Office,2020-09-30,FIXTURE & FITTINGS,CHIEF FINANCIAL OFFICER,FMS INTERIOR SERVICES LTD,443095,229.77,922056940,C008265-SERVICE-120� desk top (1200x1200x600x600mm) - Romana
BIS,Met Office,2020-09-30,FIXTURE & FITTINGS,CHIEF FINANCIAL OFFICER,FMS INTERIOR SERVICES LTD,443095,262,922056940,C008265-SERVICE-Pedestal (430x600x605mm) - Romana Cherry
BIS,Met Office,2020-09-30,FIXTURE & FITTINGS,CHIEF FINANCIAL OFFICER,FMS INTERIOR SERVICES LTD,443095,283.28,922056940,C008265-SERVICE-Circular coffee table (Dia600mm x  H400mm) -
BIS,Met Office,2020-09-30,FIXTURE & FITTINGS,CHIEF FINANCIAL OFFICER,FMS INTERIOR SERVICES LTD,443095,375.93,922056940,C008265-SERVICE-Two-tier lockers (H1930 x W305 x D460mm) - sl
BIS,Met Office,2020-09-30,FIXTURE & FITTINGS,CHIEF FINANCIAL OFFICER,FMS INTERIOR SERVICES LTD,443095,2547.68,922056940,C008265-SERVICE-Humanscale float frame FNWR63 - white
BIS,Met Office,2020-09-24,FIXTURE & FITTINGS,CHIEF FINANCIAL OFFICER,FMS INTERIOR SERVICES LTD,446750,20032.57,922056940,C008277-SERVICE-Humanscale float frame FNWR43 white - DN43945
BIS,Met Office,2020-09-10,06 ACCOMMODATION,CHIEF FINANCIAL OFFICER,FOX GROUNDS MAINTENANCE & LANDSCAPING LTD,446384,305.66,129495383,P107680-SERVICE-Watnall Grounds Maintenance 2020
BIS,Met Office,2020-09-24,11 SERVICES,CHIEF FINANCIAL OFFICER,GAMMA BUSINESS COMMUNICATIONS LTD,446516,413.1,823820344,-
BIS,Met Office,2020-09-10,11 SERVICES,CHIEF FINANCIAL OFFICER,GAMMA TELECOM LTD,446239,152.98,823820344,P104800-SERVICE-MORSN 4G overage and other consumables
BIS,Met Office,2020-09-10,11 SERVICES,CHIEF FINANCIAL OFFICER,GAMMA TELECOM LTD,444339,312.01,823820344,P104800-SERVICE-MORSN 4G overage and other consumables
BIS,Met Office,2020-09-24,11 SERVICES,CHIEF FINANCIAL OFFICER,GAMMA TELECOM LTD,446509,1102.21,823820344,P104800-SERVICE-MORSN 4G overage and other consumables
BIS,Met Office,2020-09-10,11 SERVICES,CHIEF FINANCIAL OFFICER,GAMMA TELECOM LTD,444339,26068.7,823820344,P104800-SERVICE-MORSN contract Apr 2018 for 5 years
BIS,Met Office,2020-09-10,11 SERVICES,CHIEF FINANCIAL OFFICER,GAMMA TELECOM LTD,446239,26068.7,823820344,P104800-SERVICE-MORSN contract Apr 2018 for 5 years
BIS,Met Office,2020-09-24,11 SERVICES,CHIEF FINANCIAL OFFICER,GAMMA TELECOM LTD,446509,26068.7,823820344,P104800-SERVICE-MORSN contract Apr 2018 for 5 years
BIS,Met Office,2020-09-03,06 ACCOMMODATION,CHIEF FINANCIAL OFFICER,GBC LTD,446119,162.24,859903672,P107686-SERVICE-Aviemore Grounds Maintenance 2020
BIS,Met Office,2020-09-03,06 ACCOMMODATION,CHIEF FINANCIAL OFFICER,GBC LTD,446119,184.8,859903672,P107686-SERVICE-Tulloch Bridge Gronuds Maintenance 2020
BIS,Met Office,2020-09-24,06 ACCOMMODATION,CHIEF FINANCIAL OFFICER,GOVERNMENT PROPERTY AGENCY,446930,46.5,-,-
BIS,Met Office,2020-09-24,06 ACCOMMODATION,CHIEF FINANCIAL OFFICER,GOVERNMENT PROPERTY AGENCY,446767,3606,-,-
BIS,Met Office,2020-09-24,06 ACCOMMODATION,CHIEF FINANCIAL OFFICER,GOVERNMENT PROPERTY AGENCY,446856,12880,-,-
BIS,Met Office,2020-09-24,11 SERVICES,CHIEF FINANCIAL OFFICER,GOVNET COMMUNICATIONS,446514,249,686277974,-
BIS,Met Office,2020-09-10,11 SERVICES,CHIEF FINANCIAL OFFICER,HARPER MACLEOD LLP,446415,173.6,762130557,P108421-SERVICE-Auchencruive - 2nd Additional fund required
BIS,Met Office,2020-09-03,13 MISCELLANEOUS,CHIEF FINANCIAL OFFICER,HEALIX INSURANCE SERVICES LTD,446166,-333.58,-,P106678-SERVICE-Uplift to P106678
BIS,Met Office,2020-09-03,13 MISCELLANEOUS,CHIEF FINANCIAL OFFICER,HEALIX INSURANCE SERVICES LTD,446132,29710.94,-,P108287-SERVICE-2020 Health Insurance Premiums :
BIS,Met Office,2020-09-03,13 MISCELLANEOUS,CHIEF FINANCIAL OFFICER,HEALIX INTERNATIONAL,446167,-83.95,127632909,P106677-SERVICE-Uplift to P106677
BIS,Met Office,2020-09-03,13 MISCELLANEOUS,CHIEF FINANCIAL OFFICER,HEALIX INTERNATIONAL,446133,7684.3,127632909,P108288-SERVICE-2020 Internatonal Health Fees
BIS,Met Office,2020-09-10,06 ACCOMMODATION,CHIEF FINANCIAL OFFICER,IHS GLOBAL LTD,446436,11338.63,207851367,P104909-SERVICE-2020-21 IHS online subscription service
BIS,Met Office,2020-09-03,11 SERVICES,CHIEF FINANCIAL OFFICER,INTEROUTE COMMUNICATIONS LIMITED,445939,4931.94,832 7071 39,P104891-SERVICE-10Gbps resilient internet link ISP DDoS+Line
BIS,Met Office,2020-09-24,11 SERVICES,CHIEF FINANCIAL OFFICER,INTEROUTE COMMUNICATIONS LIMITED,446777,4931.94,832 7071 39,P104891-SERVICE-10Gbps resilient internet link ISP DDoS+Line
BIS,Met Office,2020-09-23,06 ACCOMMODATION,CHIEF FINANCIAL OFFICER,JAMES & MARCIA BENJAMIN,446714,520,-,-
BIS,Met Office,2020-09-17,11 SERVICES,CHIEF FINANCIAL OFFICER,JERSEY TELECOM,446660,1283.61,NOTVATREG,-
BIS,Met Office,2020-09-10,03 STAFF COSTS T&S,CHIEF FINANCIAL OFFICER,LEASEDRIVE RENTAL MANAGEMENT LTD,446354,202.45,733546040,P107359-SERVICE-Finance to cover invoices for remainder of FY
BIS,Met Office,2020-09-10,03 STAFF COSTS T&S,CHIEF FINANCIAL OFFICER,LEASEDRIVE RENTAL MANAGEMENT LTD,446353,237.09,733546040,P107359-SERVICE-Finance to cover invoices for remainder of FY
BIS,Met Office,2020-09-17,06 ACCOMMODATION,CHIEF FINANCIAL OFFICER,LHR BUSINESS SUPPORT CENTRE LTD,446530,3062.92,927365404,-
BIS,Met Office,2020-09-03,11 SERVICES,CHIEF FINANCIAL OFFICER,LICENCE BUREAU LTD,446241,73.7,820219467,C007626-SERVICE-Finance for Driving Licence validation FY17/1
BIS,Met Office,2020-09-10,11 SERVICES,CHIEF FINANCIAL OFFICER,MANX TELECOM LTD,446365,53.21,003291912,-
BIS,Met Office,2020-09-10,11 SERVICES,CHIEF FINANCIAL OFFICER,MANX TELECOM LTD,446366,53.21,003291912,-
BIS,Met Office,2020-09-10,11 SERVICES,CHIEF FINANCIAL OFFICER,MITIE SECURITY LTD,446258,795.7,416706654,"P108220-SERVICE-A keyholding, alarm response and security pat"
BIS,Met Office,2020-09-29,11 SERVICES,CHIEF FINANCIAL OFFICER,MITIE SECURITY LTD,446398,1427.46,416706654,-
BIS,Met Office,2020-09-03,11 SERVICES,CHIEF FINANCIAL OFFICER,MITIE SECURITY LTD,446169,10263.36,416706654,P108002-SERVICE-Manned Guarding Exeter Science Park - FY 2020
BIS,Met Office,2020-09-03,11 SERVICES,CHIEF FINANCIAL OFFICER,MITIE SECURITY LTD,446170,20526.35,416706654,P107998-SERVICE-Manned Guarding MetO HQ Exeter - FY 2020/21
BIS,Met Office,2020-09-17,11 SERVICES,CHIEF FINANCIAL OFFICER,Morton Fraser LLP,446532,129.5,269129336,P108105-SERVICE-Legal Advice - Stornoway Wind Farm - Section
BIS,Met Office,2020-09-30,11 SERVICES,CHIEF FINANCIAL OFFICER,Morton Fraser LLP,447000,144,269129336,-
BIS,Met Office,2020-09-17,11 SERVICES,CHIEF FINANCIAL OFFICER,National Audit Office,446661,37250,417632457,P107862-SERVICE-Met Office External Audit 2019/20
BIS,Met Office,2020-09-23,07 EQUIPMENT,CHIEF FINANCIAL OFFICER,NATWEST COMMERCIAL CARDS DIVISION,446951,12894.88,N/A,-
BIS,Met Office,2020-09-10,06 ACCOMMODATION,CHIEF FINANCIAL OFFICER,NORSCOTT VENDING SERVICES LTD,446395,-12,751402071,P105926-SERVICE-Lossiemouth - Water Cooler
BIS,Met Office,2020-09-10,06 ACCOMMODATION,CHIEF FINANCIAL OFFICER,NORSCOTT VENDING SERVICES LTD,446137,3.8,751402071,P105926-SERVICE-Lossiemouth - Water Cooler
BIS,Met Office,2020-09-10,06 ACCOMMODATION,CHIEF FINANCIAL OFFICER,NORSCOTT VENDING SERVICES LTD,446396,85,751402071,P105926-SERVICE-Lossiemouth - Water Cooler
BIS,Met Office,2020-09-10,06 ACCOMMODATION,CHIEF FINANCIAL OFFICER,OCS Group UK Limited,446229,12297.89,GB238034379,P108085-SERVICE-Other amounts
BIS,Met Office,2020-09-10,06 ACCOMMODATION,CHIEF FINANCIAL OFFICER,OCS Group UK Limited,446229,107511.52,GB238034379,P108085-SERVICE-Payment for services provided to date
BIS,Met Office,2020-09-30,04 CONTRACTORS,CHIEF FINANCIAL OFFICER,OUTSOURCE UK LIMITED,447207,1376.36,576118722,P107840-SERVICE-Contractor: Adrian Black
BIS,Met Office,2020-09-17,04 CONTRACTORS,CHIEF FINANCIAL OFFICER,OUTSOURCE UK LIMITED,446655,4239.19,576118722,P107811-SERVICE-Contractor: Pamela Wylton
BIS,Met Office,2020-09-30,04 CONTRACTORS,CHIEF FINANCIAL OFFICER,OUTSOURCE UK LIMITED,447198,4923,576118722,P108452-SERVICE-Contractor: Adrian Black
BIS,Met Office,2020-09-30,04 CONTRACTORS,CHIEF FINANCIAL OFFICER,OUTSOURCE UK LIMITED,447194,6369.3,576118722,P108155-SERVICE-Contractor: Gary Duckworth
BIS,Met Office,2020-09-30,04 CONTRACTORS,CHIEF FINANCIAL OFFICER,OUTSOURCE UK LIMITED,447218,8255.26,576118722,P107811-SERVICE-Contractor: Pamela Wylton
BIS,Met Office,2020-09-30,04 CONTRACTORS,CHIEF FINANCIAL OFFICER,OUTSOURCE UK LIMITED,447214,8822.5,576118722,P107841-SERVICE-Contractor: Lynn O'Connell
BIS,Met Office,2020-09-10,04 CONTRACTORS,CHIEF FINANCIAL OFFICER,OUTSOURCE UK LIMITED,446224,10615.5,576118722,P108155-SERVICE-Contractor: Gary Duckworth
BIS,Met Office,2020-09-30,04 CONTRACTORS,CHIEF FINANCIAL OFFICER,OUTSOURCE UK LIMITED,447215,10773.19,576118722,P107839-SERVICE-Contractor: Chris Royds
BIS,Met Office,2020-09-30,13 MISCELLANEOUS,CHIEF FINANCIAL OFFICER,POSTURITE (UK) LTD,444463,27.87,583565114,C008318-SERVICE-DSE Equipment June 2020 to March 2021
BIS,Met Office,2020-09-30,06 ACCOMMODATION,CHIEF FINANCIAL OFFICER,POSTURITE (UK) LTD,436624,59.52,583565114,P107403-SERVICE-RH Logic 300 replacement parts - 8S Class A A
BIS,Met Office,2020-09-24,13 MISCELLANEOUS,CHIEF FINANCIAL OFFICER,POSTURITE (UK) LTD,446723,61.97,583565114,C008318-SERVICE-DSE Equipment June 2020 to March 2021
BIS,Met Office,2020-09-24,13 MISCELLANEOUS,CHIEF FINANCIAL OFFICER,POSTURITE (UK) LTD,446776,69.35,583565114,C008318-SERVICE-DSE Equipment June 2020 to March 2021
BIS,Met Office,2020-09-24,13 MISCELLANEOUS,CHIEF FINANCIAL OFFICER,POSTURITE (UK) LTD,446722,170.47,583565114,C008318-SERVICE-DSE Equipment June 2020 to March 2021
BIS,Met Office,2020-09-10,13 MISCELLANEOUS,CHIEF FINANCIAL OFFICER,POSTURITE (UK) LTD,446404,221.28,583565114,C008318-SERVICE-DSE Equipment June 2020 to March 2021
BIS,Met Office,2020-09-24,06 ACCOMMODATION,CHIEF FINANCIAL OFFICER,POWER NI ENERGY LTD,446850,466.17,617518142,-
BIS,Met Office,2020-09-10,04 CONTRACTORS,CHIEF FINANCIAL OFFICER,QUALSERV CONSULTING LTD,446349,6962.8,719067718,P108157-SERVICE-Contractor: Brenda Fewtrell
BIS,Met Office,2020-09-03,03 STAFF COSTS T&S,CHIEF FINANCIAL OFFICER,RAINBOW CITY TAXIS,446206,14.5,724295039,P107361-SERVICE-Further finance to cover remainder of FY19/20
BIS,Met Office,2020-09-10,06 ACCOMMODATION,CHIEF FINANCIAL OFFICER,REDACTED � PERSONAL DATA,446432,95,899936427,-
BIS,Met Office,2020-09-24,06 ACCOMMODATION,CHIEF FINANCIAL OFFICER,REDACTED � PERSONAL DATA,446702,126,655585009,P107750-SERVICE-Lake Vyrnwy
BIS,Met Office,2020-09-24,06 ACCOMMODATION,CHIEF FINANCIAL OFFICER,REDACTED � PERSONAL DATA,446702,136,655585009,P107750-SERVICE-Rhyl
BIS,Met Office,2020-09-24,06 ACCOMMODATION,CHIEF FINANCIAL OFFICER,REDACTED � PERSONAL DATA,446702,146,655585009,P107750-SERVICE-Cotton in the Elms
BIS,Met Office,2020-09-24,06 ACCOMMODATION,CHIEF FINANCIAL OFFICER,REDACTED � PERSONAL DATA,446702,160,655585009,P107750-SERVICE-Capel Cruig
BIS,Met Office,2020-09-24,06 ACCOMMODATION,CHIEF FINANCIAL OFFICER,REDACTED � PERSONAL DATA,446785,160,166458184,P107679-SERVICE-Wainfleet Grounds Maintenance 2020
BIS,Met Office,2020-09-24,06 ACCOMMODATION,CHIEF FINANCIAL OFFICER,REDACTED � PERSONAL DATA,446702,164,655585009,P107750-SERVICE-Leek
BIS,Met Office,2020-09-24,06 ACCOMMODATION,CHIEF FINANCIAL OFFICER,REDACTED � PERSONAL DATA,446702,166,655585009,P107750-SERVICE-Hawarden
BIS,Met Office,2020-09-24,06 ACCOMMODATION,CHIEF FINANCIAL OFFICER,REDACTED � PERSONAL DATA,446702,168,655585009,P107750-SERVICE-Rostherne
BIS,Met Office,2020-09-24,06 ACCOMMODATION,CHIEF FINANCIAL OFFICER,REDACTED � PERSONAL DATA,446702,178,655585009,P107750-SERVICE-Coleshill
BIS,Met Office,2020-09-24,06 ACCOMMODATION,CHIEF FINANCIAL OFFICER,REDACTED � PERSONAL DATA,446702,198,655585009,P107750-SERVICE-Church Lawford
BIS,Met Office,2020-09-10,06 ACCOMMODATION,CHIEF FINANCIAL OFFICER,REDACTED � PERSONAL DATA,446230,200,N/A,P107715-SERVICE-Stornoway Airport Grounds Maintenance - 2020
BIS,Met Office,2020-09-10,06 ACCOMMODATION,CHIEF FINANCIAL OFFICER,REDACTED � PERSONAL DATA,446231,200,N/A,P107715-SERVICE-Stornoway Airport Grounds Maintenance - 2020
BIS,Met Office,2020-09-30,06 ACCOMMODATION,CHIEF FINANCIAL OFFICER,REDACTED � PERSONAL DATA,447190,497.15,NOT VAT REGD,-
BIS,Met Office,2020-09-10,06 ACCOMMODATION,CHIEF FINANCIAL OFFICER,REDACTED � PERSONAL DATA,446164,751,426523462,P107777-SERVICE-Cardington 2020
BIS,Met Office,2020-09-17,06 ACCOMMODATION,CHIEF FINANCIAL OFFICER,REDACTED � PERSONAL DATA,446529,751,426523462,P107777-SERVICE-Cardington 2020
BIS,Met Office,2020-09-30,06 ACCOMMODATION,CHIEF FINANCIAL OFFICER,REDACTED � PERSONAL DATA,447112,751,426523462,P107777-SERVICE-Cardington 2020
BIS,Met Office,2020-09-10,06 ACCOMMODATION,CHIEF FINANCIAL OFFICER,REDACTED � PERSONAL DATA,446409,950,899936427,P107856-SERVICE-Camborne - Grounds Maintenance
BIS,Met Office,2020-09-30,06 ACCOMMODATION,CHIEF FINANCIAL OFFICER,REDACTED � PERSONAL DATA,447138,1110,680949687,-
BIS,Met Office,2020-09-24,06 ACCOMMODATION,CHIEF FINANCIAL OFFICER,REDACTED � PERSONAL DATA,446872,1760,426523462,P108535-SERVICE-Crawley - Tree Cutting
BIS,Met Office,2020-09-17,06 ACCOMMODATION,CHIEF FINANCIAL OFFICER,REDACTED � PERSONAL DATA,446713,3754,001874305,-
BIS,Met Office,2020-09-24,06 ACCOMMODATION,CHIEF FINANCIAL OFFICER,RIVER RIDGE,446727,105.68,176286083,-
BIS,Met Office,2020-09-24,06 ACCOMMODATION,CHIEF FINANCIAL OFFICER,RIVER RIDGE,446925,108.87,176286083,-
BIS,Met Office,2020-09-10,FIXTURE & FITTINGS,CHIEF FINANCIAL OFFICER,S SMITH & SONS CARPETS LTD,446433,364,456159529,P108422-SERVICE-Exeter Breakout Area 2nd Floor - Vinyl
BIS,Met Office,2020-09-10,FIXTURE & FITTINGS,CHIEF FINANCIAL OFFICER,S SMITH & SONS CARPETS LTD,446433,440,456159529,P108422-SERVICE-Exeter Breakout Area 1st Floor - Vinyl
BIS,Met Office,2020-09-10,FIXTURE & FITTINGS,CHIEF FINANCIAL OFFICER,S SMITH & SONS CARPETS LTD,446433,1974,456159529,P108422-SERVICE-Exeter Breakout Area 2nd Floor - Carpet
BIS,Met Office,2020-09-10,FIXTURE & FITTINGS,CHIEF FINANCIAL OFFICER,S SMITH & SONS CARPETS LTD,446433,2416,456159529,P108422-SERVICE-Exeter Breakout Area 1st Floor - Carpet
BIS,Met Office,2020-09-17,06 ACCOMMODATION,CHIEF FINANCIAL OFFICER,SAFESTORE LTD,446620,2681.21,722887607,-
BIS,Met Office,2020-09-03,06 ACCOMMODATION,CHIEF FINANCIAL OFFICER,SELECTA UK LTD,446146,112.03,581705924,-
BIS,Met Office,2020-09-10,11 SERVICES,CHIEF FINANCIAL OFFICER,Siemens Plc,446364,32.22,GB 927 317 516,-
BIS,Met Office,2020-09-17,04 CONTRACTORS,CHIEF FINANCIAL OFFICER,SOLOS CONSULTANTS LTD,446486,6512.44,812035476,P108162-SERVICE-Contractor: Ed O'Brien
BIS,Met Office,2020-09-17,04 CONTRACTORS,CHIEF FINANCIAL OFFICER,SOLOS CONSULTANTS LTD,446478,11358.2,812035476,P107532-SERVICE-Contractor: Kevin Ingram
BIS,Met Office,2020-09-10,04 CONTRACTORS,CHIEF FINANCIAL OFFICER,SOLOS CONSULTANTS LTD,446464,11398.86,812035476,P107654-SERVICE-Contractor: Susan Matthews
BIS,Met Office,2020-09-30,06 ACCOMMODATION,CHIEF FINANCIAL OFFICER,SOUTH WEST WATER LTD,446973,37.31,236873674,-
BIS,Met Office,2020-09-24,06 ACCOMMODATION,CHIEF FINANCIAL OFFICER,SOUTH WEST WATER LTD,446848,42.01,236873674,-
BIS,Met Office,2020-09-24,06 ACCOMMODATION,CHIEF FINANCIAL OFFICER,SOUTH WEST WATER LTD,446849,1195.8,236873674,-
BIS,Met Office,2020-09-17,06 ACCOMMODATION,CHIEF FINANCIAL OFFICER,SOUTH WEST WATER LTD,446662,3075.78,236873674,-
BIS,Met Office,2020-09-17,06 ACCOMMODATION,CHIEF FINANCIAL OFFICER,SOUTH WEST WATER LTD,446496,10080.25,236873674,-
BIS,Met Office,2020-09-24,06 ACCOMMODATION,CHIEF FINANCIAL OFFICER,SSE CONTRACTING LTD,446774,55.56,570118464,-
BIS,Met Office,2020-09-03,11 SERVICES,CHIEF FINANCIAL OFFICER,ST JOHN AMBULANCE,446227,222,564553916,P107387-SERVICE-First Aid Training Dec 2019 - Nov 2020.
BIS,Met Office,2020-09-30,11 SERVICES,CHIEF FINANCIAL OFFICER,ST JOHN AMBULANCE,446878,558.75,564553916,P107387-SERVICE-First Aid Training Dec 2019 - Nov 2020.
BIS,Met Office,2020-09-10,06 ACCOMMODATION,CHIEF FINANCIAL OFFICER,ST MODWEN VENTURES LTD,446225,862.5,975081008,-
BIS,Met Office,2020-09-24,06 ACCOMMODATION,CHIEF FINANCIAL OFFICER,STARK SOFTWARE INTERNATIONAL LTD,446877,50.6,644372829,-
BIS,Met Office,2020-09-24,06 ACCOMMODATION,CHIEF FINANCIAL OFFICER,STONE HILL PARK LTD,446746,14.11,196461180,-
BIS,Met Office,2020-09-24,11 SERVICES,CHIEF FINANCIAL OFFICER,SURE SOUTH ATLANTIC LTD,446730,591.15,-,-
BIS,Met Office,2020-09-24,11 SERVICES,CHIEF FINANCIAL OFFICER,SURE SOUTH ATLANTIC LTD,446729,4743,-,-
BIS,Met Office,2020-09-24,11 SERVICES,CHIEF FINANCIAL OFFICER,SURE SOUTH ATLANTIC LTD (ST HELENA),446773,2159.69,30005,-
BIS,Met Office,2020-09-30,11 SERVICES,CHIEF FINANCIAL OFFICER,SWISSCOM (SCHWEIZ) AG,446444,90.52,-,-
BIS,Met Office,2020-09-02,11 SERVICES,CHIEF FINANCIAL OFFICER,SWISSCOM (SCHWEIZ) AG,445337,91.95,-,-
BIS,Met Office,2020-09-10,06 ACCOMMODATION,CHIEF FINANCIAL OFFICER,TEAM MAINTENANCE SERVICES LTD,446420,100,744909406,P108197-SERVICE-Gate Adjustment
BIS,Met Office,2020-09-24,11 SERVICES,CHIEF FINANCIAL OFFICER,TELEFONICA O2 UK LIMITED,446948,7899.89,778603785,P107116-SERVICE-O2 Mobile Telephone contract extension
BIS,Met Office,2020-09-30,11 SERVICES,CHIEF FINANCIAL OFFICER,TELIA FINLAND OYJ,21818,163.04,FI14756079,-
BIS,Met Office,2020-09-10,06 ACCOMMODATION,CHIEF FINANCIAL OFFICER,TENNIE FACILITIES PROPERTY MANAGEMENT LTD,446263,165.72,982055803,P104760-SERVICE-Hillington - Cleaning
BIS,Met Office,2020-09-10,06 ACCOMMODATION,CHIEF FINANCIAL OFFICER,THE CLEANING CREW COMPANY,446130,637,343579772,P108163-SERVICE-Cardington - Cleaning 2020
BIS,Met Office,2020-09-17,06 ACCOMMODATION,CHIEF FINANCIAL OFFICER,THE NATIONAL TRUST FOR SCOTLAND,446731,600,429459027,-
BIS,Met Office,2020-09-24,06 ACCOMMODATION,CHIEF FINANCIAL OFFICER,THORNLEY WILDLIFE SERVICES,446873,160,N/A,P107716-SERVICE-Walney Island Grounds Maintenance 2020
BIS,Met Office,2020-09-10,06 ACCOMMODATION,CHIEF FINANCIAL OFFICER,UNDER ONE ROOF (EAST ANGLIA) LIMITED,446417,230,157127804,P107678-SERVICE-Tibenham -  Grounds Maintenance 2020
BIS,Met Office,2020-09-24,06 ACCOMMODATION,CHIEF FINANCIAL OFFICER,UNDER ONE ROOF (EAST ANGLIA) LIMITED,446745,230,157127804,P107678-SERVICE-Tibenham -  Grounds Maintenance 2020
BIS,Met Office,2020-09-10,11 SERVICES,CHIEF FINANCIAL OFFICER,University Of Reading,445951,67.68,200012659,-
BIS,Met Office,2020-09-17,13 MISCELLANEOUS,CHIEF FINANCIAL OFFICER,VICKERY HOLMAN,446744,266.44,943875678,-
BIS,Met Office,2020-09-24,06 ACCOMMODATION,CHIEF FINANCIAL OFFICER,VICKERY HOLMAN,446772,4015.62,943875678,-
BIS,Met Office,2020-09-17,11 SERVICES,CHIEF FINANCIAL OFFICER,Vodafone Limited,446619,383.4,569953277,-
BIS,Met Office,2020-09-17,11 SERVICES,CHIEF FINANCIAL OFFICER,Vodafone Limited,446616,583.84,569953277,-
BIS,Met Office,2020-09-17,11 SERVICES,CHIEF FINANCIAL OFFICER,Vodafone Limited,446618,825.27,569953277,-
BIS,Met Office,2020-09-17,11 SERVICES,CHIEF FINANCIAL OFFICER,Vodafone Limited,446617,4806.9,569953277,-
BIS,Met Office,2020-09-30,04 CONTRACTORS,CHIEF FINANCIAL OFFICER,WA CONSULTANTS LTD,447201,7830,876328977,P107007-SERVICE-Contractor: Aled Evans
BIS,Met Office,2020-09-17,04 CONTRACTORS,CHIEF FINANCIAL OFFICER,WA CONSULTANTS LTD,446738,8265,876328977,P107007-SERVICE-Contractor: Aled Evans
BIS,Met Office,2020-09-17,04 CONTRACTORS,CHIEF FINANCIAL OFFICER,WA CONSULTANTS LTD,446740,11574.96,876328977,P107812-SERVICE-Lucy Penn Extension 28/3/20 - 25/9/20 @ 538.
BIS,Met Office,2020-09-17,04 CONTRACTORS,CHIEF FINANCIAL OFFICER,WA CONSULTANTS LTD,446734,14250,876328977,P107560-SERVICE-Contractor: Ian Connor
BIS,Met Office,2020-09-30,06 ACCOMMODATION,CHIEF FINANCIAL OFFICER,WARWICKSHIRE COLLEGE,447031,585.47,585279590,-
BIS,Met Office,2020-09-03,11 SERVICES,CHIEF FINANCIAL OFFICER,WEBEX COMMUNICATIONS UK LTD,446159,211.75,815974302,-
BIS,Met Office,2020-09-17,06 ACCOMMODATION,CHIEF FINANCIAL OFFICER,Wessex Water Services Ltd,446741,500,-,-
BIS,Met Office,2020-09-10,06 ACCOMMODATION,CHIEF FINANCIAL OFFICER,WEST LANCASHIRE BOROUGH COUNCIL,446111,122.66,-,-
BIS,Met Office,2020-09-10,11 SERVICES,CHIEF FINANCIAL OFFICER,XUPER,446262,450,316677090,P108191-SERVICE-Web connections
BIS,Met Office,2020-09-10,11 SERVICES,CHIEF FINANCIAL OFFICER,XUPER,446262,660,316677090,P108191-SERVICE-Southampton
BIS,Met Office,2020-09-10,11 SERVICES,CHIEF FINANCIAL OFFICER,XUPER,446262,720,316677090,P108191-SERVICE-Aberdeen
BIS,Met Office,2020-09-10,11 SERVICES,CHIEF FINANCIAL OFFICER,XUPER,446262,720,316677090,P108191-SERVICE-Cardington
BIS,Met Office,2020-09-10,11 SERVICES,CHIEF FINANCIAL OFFICER,XUPER,446262,720,316677090,P108191-SERVICE-Edinburgh
BIS,Met Office,2020-09-10,11 SERVICES,CHIEF FINANCIAL OFFICER,XUPER,446262,720,316677090,P108191-SERVICE-Lerwick
BIS,Met Office,2020-09-10,11 SERVICES,CHIEF FINANCIAL OFFICER,XUPER,446262,720,316677090,P108191-SERVICE-London
BIS,Met Office,2020-09-10,11 SERVICES,CHIEF FINANCIAL OFFICER,XUPER,446262,720,316677090,P108191-SERVICE-Reading
BIS,Met Office,2020-09-10,11 SERVICES,CHIEF FINANCIAL OFFICER,XUPER,446262,720,316677090,P108191-SERVICE-Watnall
BIS,Met Office,2020-09-10,11 SERVICES,CHIEF FINANCIAL OFFICER,XUPER,446262,825,316677090,P108191-SERVICE-Camborne
BIS,Met Office,2020-09-10,11 SERVICES,CHIEF FINANCIAL OFFICER,XUPER,446262,2295,316677090,P108191-SERVICE-Exeter HQ meeting rooms
BIS,Met Office,2020-09-10,11 SERVICES,CHIEF FINANCIAL OFFICER,XUPER,446262,2412.75,316677090,P108191-SERVICE-Exeter fibre
BIS,Met Office,2020-09-10,11 SERVICES,CORPORATE,ACCESS INTELLIGENCE MEDIA AND COMMUNICATIONS,445857,417.33,GB225346716,-
BIS,Met Office,2020-09-17,11 SERVICES,CORPORATE,BEIS,446502,6891,888825550,"P107312-SERVICE-Costs of EAS Survey, as per ""Civil Service Pe"
BIS,Met Office,2020-09-30,11 SERVICES,CORPORATE,BRIGHTBLUE CONSULTING,447172,15000,135 0352 49,"P108567-SERVICE-Phase I - delivery costs - Audit, Analysis an"
BIS,Met Office,2020-09-24,11 SERVICES,CORPORATE,BW TRAINING LTD,446929,395,-,P108343-SERVICE-Training Sessions - 22 & 28 July/6 & 12 Augus
BIS,Met Office,2020-09-10,11 SERVICES,CORPORATE,EQUINITI ICS LTD,446218,316.66,915967778,P108113-SERVICE-Equiniti service contract plus 3rd party paym
BIS,Met Office,2020-09-10,11 SERVICES,CORPORATE,EQUINITI ICS LTD,446219,6846,915967778,P108113-SERVICE-Equiniti service contract plus 3rd party paym
BIS,Met Office,2020-09-30,11 SERVICES,CORPORATE,HAWK INCENTIVES LTD,446998,-150,238839422,C008324-SERVICE-Black Hawk Incentives- IRS Supercheques fundi
BIS,Met Office,2020-09-30,11 SERVICES,CORPORATE,HAWK INCENTIVES LTD,446988,-15,238839422,C008324-SERVICE-Black Hawk Incentives- IRS Supercheques fundi
BIS,Met Office,2020-09-30,11 SERVICES,CORPORATE,HAWK INCENTIVES LTD,446990,-15,238839422,C008324-SERVICE-Black Hawk Incentives- IRS Supercheques fundi
BIS,Met Office,2020-09-30,11 SERVICES,CORPORATE,HAWK INCENTIVES LTD,446991,-15,238839422,C008324-SERVICE-Black Hawk Incentives- IRS Supercheques fundi
BIS,Met Office,2020-09-30,11 SERVICES,CORPORATE,HAWK INCENTIVES LTD,446992,-15,238839422,C008324-SERVICE-Black Hawk Incentives- IRS Supercheques fundi
BIS,Met Office,2020-09-30,11 SERVICES,CORPORATE,HAWK INCENTIVES LTD,446993,-15,238839422,C008324-SERVICE-Black Hawk Incentives- IRS Supercheques fundi
BIS,Met Office,2020-09-30,11 SERVICES,CORPORATE,HAWK INCENTIVES LTD,446994,-15,238839422,C008324-SERVICE-Black Hawk Incentives- IRS Supercheques fundi
BIS,Met Office,2020-09-30,11 SERVICES,CORPORATE,HAWK INCENTIVES LTD,446995,-15,238839422,C008324-SERVICE-Black Hawk Incentives- IRS Supercheques fundi
BIS,Met Office,2020-09-30,11 SERVICES,CORPORATE,HAWK INCENTIVES LTD,446996,-15,238839422,C008324-SERVICE-Black Hawk Incentives- IRS Supercheques fundi
BIS,Met Office,2020-09-30,11 SERVICES,CORPORATE,HAWK INCENTIVES LTD,447013,-15,238839422,C008324-SERVICE-Black Hawk Incentives- IRS Supercheques fundi
BIS,Met Office,2020-09-10,11 SERVICES,CORPORATE,HAWK INCENTIVES LTD,446386,110.25,238839422,C008324-SERVICE-Hawk Incentives voucher scheme handling fee
BIS,Met Office,2020-09-30,11 SERVICES,CORPORATE,HAWK INCENTIVES LTD,446989,155.75,238839422,C008324-SERVICE-Hawk Incentives voucher scheme handling fee
BIS,Met Office,2020-09-10,11 SERVICES,CORPORATE,HAWK INCENTIVES LTD,446161,202,238839422,C008324-SERVICE-Hawk Incentives voucher scheme handling fee
BIS,Met Office,2020-09-10,11 SERVICES,CORPORATE,HAWK INCENTIVES LTD,446162,203.25,238839422,C008324-SERVICE-Hawk Incentives voucher scheme handling fee
BIS,Met Office,2020-09-17,11 SERVICES,CORPORATE,HAWK INCENTIVES LTD,446749,249,238839422,C008324-SERVICE-Hawk Incentives voucher scheme handling fee
BIS,Met Office,2020-09-10,11 SERVICES,CORPORATE,HAWK INCENTIVES LTD,446285,352.99,238839422,C008324-SERVICE-Hawk Incentives voucher scheme handling fee
BIS,Met Office,2020-09-10,11 SERVICES,CORPORATE,HAWK INCENTIVES LTD,446386,2205,238839422,C008324-SERVICE-Black Hawk Incentives- IRS Supercheques fundi
BIS,Met Office,2020-09-30,11 SERVICES,CORPORATE,HAWK INCENTIVES LTD,446989,3115,238839422,C008324-SERVICE-Black Hawk Incentives- IRS Supercheques fundi
BIS,Met Office,2020-09-10,11 SERVICES,CORPORATE,HAWK INCENTIVES LTD,446161,4040,238839422,C008324-SERVICE-Black Hawk Incentives- IRS Supercheques fundi
BIS,Met Office,2020-09-10,11 SERVICES,CORPORATE,HAWK INCENTIVES LTD,446162,4065,238839422,C008324-SERVICE-Black Hawk Incentives- IRS Supercheques fundi
BIS,Met Office,2020-09-17,11 SERVICES,CORPORATE,HAWK INCENTIVES LTD,446749,4980,238839422,C008324-SERVICE-Black Hawk Incentives- IRS Supercheques fundi
BIS,Met Office,2020-09-10,11 SERVICES,CORPORATE,HAWK INCENTIVES LTD,446285,7060.01,238839422,C008324-SERVICE-Black Hawk Incentives- IRS Supercheques fundi
BIS,Met Office,2020-09-17,04 CONTRACTORS,CORPORATE,HAYS SPECIALIST RECRUITMENT LTD,446634,244.1,773695871,P108373-SERVICE-Contractor: Shona English
BIS,Met Office,2020-09-30,04 CONTRACTORS,CORPORATE,HAYS SPECIALIST RECRUITMENT LTD,447023,341.75,773695871,P108335-SERVICE-Contractor: Margaret Stark
BIS,Met Office,2020-09-24,04 CONTRACTORS,CORPORATE,HAYS SPECIALIST RECRUITMENT LTD,446862,476,773695871,P108335-SERVICE-Contractor: Margaret Stark
BIS,Met Office,2020-09-03,04 CONTRACTORS,CORPORATE,HAYS SPECIALIST RECRUITMENT LTD,446157,488.2,773695871,P108373-SERVICE-Contractor: Shona English
BIS,Met Office,2020-09-10,04 CONTRACTORS,CORPORATE,HAYS SPECIALIST RECRUITMENT LTD,446342,488.2,773695871,P108373-SERVICE-Contractor: Shona English
BIS,Met Office,2020-09-24,04 CONTRACTORS,CORPORATE,HAYS SPECIALIST RECRUITMENT LTD,446868,488.2,773695871,P108373-SERVICE-Contractor: Shona English
BIS,Met Office,2020-09-30,04 CONTRACTORS,CORPORATE,HAYS SPECIALIST RECRUITMENT LTD,447027,488.2,773695871,P108373-SERVICE-Contractor: Shona English
BIS,Met Office,2020-09-03,04 CONTRACTORS,CORPORATE,HAYS SPECIALIST RECRUITMENT LTD,446145,634.67,773695871,P108208-SERVICE-Contractor: Elizabeth Parsons
BIS,Met Office,2020-09-10,04 CONTRACTORS,CORPORATE,HAYS SPECIALIST RECRUITMENT LTD,446424,634.67,773695871,P108208-SERVICE-Contractor: Elizabeth Parsons
BIS,Met Office,2020-09-17,04 CONTRACTORS,CORPORATE,HAYS SPECIALIST RECRUITMENT LTD,446636,634.67,773695871,P108208-SERVICE-Contractor: Elizabeth Parsons
BIS,Met Office,2020-09-24,04 CONTRACTORS,CORPORATE,HAYS SPECIALIST RECRUITMENT LTD,446864,634.67,773695871,P108208-SERVICE-Contractor: Elizabeth Parsons
BIS,Met Office,2020-09-30,04 CONTRACTORS,CORPORATE,HAYS SPECIALIST RECRUITMENT LTD,447028,634.67,773695871,P108208-SERVICE-Contractor: Elizabeth Parsons
BIS,Met Office,2020-09-03,04 CONTRACTORS,CORPORATE,HAYS SPECIALIST RECRUITMENT LTD,446151,842.17,773695871,P108335-SERVICE-Contractor: Margaret Stark
BIS,Met Office,2020-09-10,04 CONTRACTORS,CORPORATE,HAYS SPECIALIST RECRUITMENT LTD,446402,842.17,773695871,P108335-SERVICE-Contractor: Margaret Stark
BIS,Met Office,2020-09-30,04 CONTRACTORS,CORPORATE,HAYS SPECIALIST RECRUITMENT LTD,447025,878.78,773695871,P108335-SERVICE-Contractor: Margaret Stark
BIS,Met Office,2020-09-30,13 MISCELLANEOUS,CORPORATE,HEALTH MANAGEMENT LTD,447135,752.07,792250621,C008313-SERVICE-Health Management services FY20-21.
BIS,Met Office,2020-09-17,04 CONTRACTORS,CORPORATE,JOBSEEKERS RECRUITMENT SERVICES LTD,446506,520.26,130 1297 14,P108506-SERVICE-Contractor: Anita Crockett
BIS,Met Office,2020-09-17,04 CONTRACTORS,CORPORATE,JOBSEEKERS RECRUITMENT SERVICES LTD,446718,663.78,130 1297 14,P108506-SERVICE-Contractor: Anita Crockett
BIS,Met Office,2020-09-24,04 CONTRACTORS,CORPORATE,JOBSEEKERS RECRUITMENT SERVICES LTD,447002,663.78,130 1297 14,P108506-SERVICE-Contractor: Anita Crockett
BIS,Met Office,2020-09-30,04 CONTRACTORS,CORPORATE,JOBSEEKERS RECRUITMENT SERVICES LTD,447181,663.78,130 1297 14,P108506-SERVICE-Contractor: Anita Crockett
BIS,Met Office,2020-09-17,11 SERVICES,CORPORATE,Landmark Information Group Ltd,446747,42896.67,634509735,P108351-SERVICE-Continuous Improvement of the Web and App
BIS,Met Office,2020-09-17,11 SERVICES,CORPORATE,Landmark Information Group Ltd,446748,72671.43,634509735,P108351-SERVICE-Continuous Improvement of the Web and App
BIS,Met Office,2020-09-17,11 SERVICES,CORPORATE,OPUS PERFORMANCE LTD,446721,3300,831961423,P108536-SERVICE-Inclusive Training - 7-9 September
BIS,Met Office,2020-09-30,04 CONTRACTORS,CORPORATE,OUTSOURCE UK LIMITED,447211,1000,576118722,P107837-SERVICE-Contractor: Fiona McPhail
BIS,Met Office,2020-09-03,04 CONTRACTORS,CORPORATE,OUTSOURCE UK LIMITED,446209,1397.84,576118722,P108204-SERVICE-Contractor: Helen Butler
BIS,Met Office,2020-09-30,04 CONTRACTORS,CORPORATE,OUTSOURCE UK LIMITED,447216,4451.67,576118722,P108441-SERVICE-Contractor: Fiona McPhail
BIS,Met Office,2020-09-17,04 CONTRACTORS,CORPORATE,OUTSOURCE UK LIMITED,446651,6000,576118722,P107837-SERVICE-Contractor: Fiona McPhail
BIS,Met Office,2020-09-03,04 CONTRACTORS,CORPORATE,OUTSOURCE UK LIMITED,446210,6290.28,576118722,P108337-SERVICE-Contractor: Helen Butler
BIS,Met Office,2020-09-03,11 SERVICES,CORPORATE,PRECISE MEDIA MONITORING LTD,430435,1666.67,849092202,P105089-SERVICE-Annual renewal for media monitoring services
BIS,Met Office,2020-09-30,04 CONTRACTORS,CORPORATE,QUALSERV CONSULTING LTD,447164,2689.32,719067718,P108308-SERVICE-Contractor: Cheryl Shearer
BIS,Met Office,2020-09-10,04 CONTRACTORS,CORPORATE,QUALSERV CONSULTING LTD,446348,3375,719067718,P107836-SERVICE-Contractor: Cheryl Shearer
BIS,Met Office,2020-09-17,04 CONTRACTORS,CORPORATE,QUINTON DAVIES LIMITED,446724,3575,291532892,P107696-SERVICE-Contractor: Stephen Marshall
BIS,Met Office,2020-09-10,04 CONTRACTORS,CORPORATE,QUINTON DAVIES LIMITED,446427,10725,291532892,P107696-SERVICE-Contractor: Stephen Marshall
BIS,Met Office,2020-09-17,11 SERVICES,CORPORATE,REDACTED � PERSONAL DATA,445527,405,143043312,-
BIS,Met Office,2020-09-10,11 SERVICES,CORPORATE,REDACTED � PERSONAL DATA,446140,750,143043312,P108464-SERVICE-Legal Advice Holiday Pay
BIS,Met Office,2020-09-24,11 SERVICES,CORPORATE,REDACTED � PERSONAL DATA,446881,1720,143043312,-
BIS,Met Office,2020-09-17,11 SERVICES,CORPORATE,REDACTED � PERSONAL DATA,446754,1995,974266192,P108542-SERVICE-Two day 'Reports With Impact' refresher cours
BIS,Met Office,2020-09-10,11 SERVICES,CORPORATE,REDACTED � PERSONAL DATA,446441,10516,143043312,-
BIS,Met Office,2020-09-10,11 SERVICES,CORPORATE,RIVER TRAINING AND HR,446369,790,-,P108499-SERVICE-Training: Unconscious Bias - 26 August 2020 a
BIS,Met Office,2020-09-24,11 SERVICES,CORPORATE,SODEXO MOT SOL UK  LTD (CHILDCARE RECEIPTS),446901,424.73,733644335,P106457-SERVICE-Childcare Vouchers 2019/20
BIS,Met Office,2020-09-17,04 CONTRACTORS,CORPORATE,SOLOS CONSULTANTS LTD,446474,1987.92,812035476,P108098-SERVICE-Contractor: Helen Pincombe
BIS,Met Office,2020-09-17,04 CONTRACTORS,CORPORATE,SOLOS CONSULTANTS LTD,446470,3969.7,812035476,P108007-SERVICE-Contractor: Mark Lake
BIS,Met Office,2020-09-17,04 CONTRACTORS,CORPORATE,SOLOS CONSULTANTS LTD,446490,9133.3,812035476,P107773-SERVICE-Contractor: Paul Eveleigh
BIS,Met Office,2020-09-10,04 CONTRACTORS,CORPORATE,SOLOS CONSULTANTS LTD,446467,10786.08,812035476,P108272-SERVICE-Contractor: Frederick Walden
BIS,Met Office,2020-09-03,11 SERVICES,CORPORATE,SWANTECH LOGISTICS LTD,446120,2897.84,769332401,P108423-SERVICE-Studio Costs - Remote Media Technical Operato
BIS,Met Office,2020-09-17,11 SERVICES,GOVERNMENT SERVICES,ACCELERATION EMARKETING,446498,6939.94,848940776,P107913-SERVICE-Google Ad Manager
BIS,Met Office,2020-09-09,11 SERVICES,GOVERNMENT SERVICES,ACHILLES INFORMATION LIMITED,445766,-900,GB 663 5624 23,P108190-SERVICE-Contract Management 11 June 2020
BIS,Met Office,2020-09-09,11 SERVICES,GOVERNMENT SERVICES,ACHILLES INFORMATION LIMITED,445766,-900,GB 663 5624 23,P108190-SERVICE-Specification Writing 03 June 2020
BIS,Met Office,2020-09-09,11 SERVICES,GOVERNMENT SERVICES,ACHILLES INFORMATION LIMITED,445766,-900,GB 663 5624 23,P108190-SERVICE-Specification Writing 04 June 2020
BIS,Met Office,2020-09-10,11 SERVICES,GOVERNMENT SERVICES,ACHILLES INFORMATION LIMITED,446523,-900,GB 663 5624 23,P108190-SERVICE-Specification Writing 03 June 2020
BIS,Met Office,2020-09-10,11 SERVICES,GOVERNMENT SERVICES,ACHILLES INFORMATION LIMITED,446524,-900,GB 663 5624 23,P108190-SERVICE-Specification Writing 04 June 2020
BIS,Met Office,2020-09-10,11 SERVICES,GOVERNMENT SERVICES,ACHILLES INFORMATION LIMITED,446525,-900,GB 663 5624 23,P108190-SERVICE-Contract Management 11 June 2020
BIS,Met Office,2020-09-17,11 SERVICES,GOVERNMENT SERVICES,ACHILLES INFORMATION LIMITED,446534,300,GB 663 5624 23,P108190-SERVICE-Specification Writing 04 June 2020
BIS,Met Office,2020-09-09,11 SERVICES,GOVERNMENT SERVICES,ACHILLES INFORMATION LIMITED,443319,900,GB 663 5624 23,P108190-SERVICE-Contract Management 11 June 2020
BIS,Met Office,2020-09-09,11 SERVICES,GOVERNMENT SERVICES,ACHILLES INFORMATION LIMITED,443319,900,GB 663 5624 23,P108190-SERVICE-Specification Writing 03 June 2020
BIS,Met Office,2020-09-09,11 SERVICES,GOVERNMENT SERVICES,ACHILLES INFORMATION LIMITED,443319,900,GB 663 5624 23,P108190-SERVICE-Specification Writing 04 June 2020
BIS,Met Office,2020-09-10,11 SERVICES,GOVERNMENT SERVICES,ACHILLES INFORMATION LIMITED,445763,900,GB 663 5624 23,P108190-SERVICE-Specification Writing 03 June 2020
BIS,Met Office,2020-09-10,11 SERVICES,GOVERNMENT SERVICES,ACHILLES INFORMATION LIMITED,445764,900,GB 663 5624 23,P108190-SERVICE-Contract Management 11 June 2020
BIS,Met Office,2020-09-10,11 SERVICES,GOVERNMENT SERVICES,ACHILLES INFORMATION LIMITED,445771,900,GB 663 5624 23,P108190-SERVICE-Specification Writing 04 June 2020
BIS,Met Office,2020-09-17,11 SERVICES,GOVERNMENT SERVICES,ACHILLES INFORMATION LIMITED,446534,900,GB 663 5624 23,P108190-SERVICE-Specification Writing 03 June 2020
BIS,Met Office,2020-09-10,11 SERVICES,GOVERNMENT SERVICES,ADOPSTAR,446368,1250,115036848,P107078-SERVICE-Advertising and Sponsorship Campaing Set up s
BIS,Met Office,2020-09-17,11 SERVICES,GOVERNMENT SERVICES,AECOM INFRASTRUCTURE & ENVIRONMENT UK LTD,445856,187.5,611853162,P108390-SERVICE-2b Estimated cost for Planning Application �
BIS,Met Office,2020-09-03,11 SERVICES,GOVERNMENT SERVICES,AECOM INFRASTRUCTURE & ENVIRONMENT UK LTD,444977,1500.32,611853162,P107308-SERVICE-Stage 2b : Cost Benefits Analysis of Radar Ne
BIS,Met Office,2020-09-17,11 SERVICES,GOVERNMENT SERVICES,AECOM INFRASTRUCTURE & ENVIRONMENT UK LTD,445856,3732.5,611853162,P108390-SERVICE-2a Radar Site Review  5 additional sites � N
BIS,Met Office,2020-09-17,11 SERVICES,GOVERNMENT SERVICES,AECOM INFRASTRUCTURE & ENVIRONMENT UK LTD,445856,10580.63,611853162,P108390-SERVICE-2c Report on Radar Network Design 5 addition
BIS,Met Office,2020-09-17,11 SERVICES,GOVERNMENT SERVICES,AECOM INFRASTRUCTURE & ENVIRONMENT UK LTD,445856,13785.31,611853162,P108390-SERVICE-2a Radar Site Review  5 additional sites
BIS,Met Office,2020-09-03,11 SERVICES,GOVERNMENT SERVICES,AECOM INFRASTRUCTURE & ENVIRONMENT UK LTD,444977,22980,611853162,P107308-SERVICE-Stage 2c : Report on Radar Network Design.
BIS,Met Office,2020-09-03,11 SERVICES,GOVERNMENT SERVICES,AECOM INFRASTRUCTURE & ENVIRONMENT UK LTD,444977,37672.5,611853162,P107308-SERVICE-Stage 2a : Report on Radar Locations and RF.
BIS,Met Office,2020-09-10,13 MISCELLANEOUS,GOVERNMENT SERVICES,AIRTO LTD,446497,6595,448873792,P108393-SERVICE-AIRTO Membership 1 July 2020 - 30 June 2021
BIS,Met Office,2020-09-10,11 SERVICES,GOVERNMENT SERVICES,B2B INTERNATIONAL LTD,446363,17400,685937275,P108498-SERVICE-Responder Workshops 2020 research as per B2B
BIS,Met Office,2020-09-30,11 SERVICES,GOVERNMENT SERVICES,"BASILIO SOZINHO CUBULA SERVI�OS, E.I.",9943,4074.39,N/A,P108518-SERVICE-Continued data digitisation and quality contr
BIS,Met Office,2020-09-16,11 SERVICES,GOVERNMENT SERVICES,"BASILIO SOZINHO CUBULA SERVI�OS, E.I.",9926,4124.34,N/A,P108518-SERVICE-Continued data digitisation and quality contr
BIS,Met Office,2020-09-24,11 SERVICES,GOVERNMENT SERVICES,BBC MEDIA ACTION,446980,67229,GB333289454,P105107-SERVICE-Costed Extension- WISER - Climate Information
BIS,Met Office,2020-09-30,11 SERVICES,GOVERNMENT SERVICES,CACI LTD,447144,4160,380609841,P108338-SERVICE-Space Weather IT outsourcing
BIS,Met Office,2020-09-30,11 SERVICES,GOVERNMENT SERVICES,CACI LTD,447144,4414,380609841,P108338-SERVICE-Space Weather IT outsourcing - W&R deprecatio
BIS,Met Office,2020-09-30,11 SERVICES,GOVERNMENT SERVICES,CACI LTD,447144,32687.5,380609841,P108338-SERVICE-Space Weather IT outsourcing - KNMI
BIS,Met Office,2020-09-30,11 SERVICES,GOVERNMENT SERVICES,CACI LTD,447144,34102,380609841,P108338-SERVICE-Space Weather IT outsourcing - Def SSA
BIS,Met Office,2020-09-30,11 SERVICES,GOVERNMENT SERVICES,CAMBRIDGE ECONOMETRICS LTD,446936,93507.33,1916825,P107447-SERVICE-Development and provision of UK socioeconomic
BIS,Met Office,2020-09-24,11 SERVICES,GOVERNMENT SERVICES,Cgi It Uk Limited,446981,1397.32,232615194,P106037-SERVICE-RIMNET 3 Support November 2018 to January 202
BIS,Met Office,2020-09-23,11 SERVICES,GOVERNMENT SERVICES,CONSULTEC,21808,15100.07,400005915,P104653-SERVICE-Specialist local management - subcontracted 0
BIS,Met Office,2020-09-04,11 SERVICES,GOVERNMENT SERVICES,DBS FINANCE RECEIPTS CTS,446150,12204.27,888805068,P107036-SERVICE-Secondment to Met Office of Cdr Nicholas Davi
BIS,Met Office,2020-09-24,11 SERVICES,GOVERNMENT SERVICES,DBS FINANCE RECEIPTS CTS,446940,12911.4,888805068,P107036-SERVICE-Secondment to Met Office of Cdr Nicholas Davi
BIS,Met Office,2020-09-10,11 SERVICES,GOVERNMENT SERVICES,DJS RESEARCH LIMITED,446286,9894,775718779,P108473-SERVICE-Public ad-hoc survey for Wind in Wales (Named
BIS,Met Office,2020-09-02,11 SERVICES,GOVERNMENT SERVICES,Eumetsat,21730,2700.61,VE,-
BIS,Met Office,2020-09-10,11 SERVICES,GOVERNMENT SERVICES,FCDO,446339,37.05,888813560,P106437-SERVICE-Stationery / Miscellaneous Expenses FCO recha
BIS,Met Office,2020-09-30,11 SERVICES,GOVERNMENT SERVICES,Global Weather Corporation,9947,15430.79,-,P108592-SERVICE-UK-V GWC Integration Evaluation in accordance
BIS,Met Office,2020-09-17,04 CONTRACTORS,GOVERNMENT SERVICES,HAYS SPECIALIST RECRUITMENT LTD,446635,183.08,773695871,P108020-SERVICE-Contractor: Andrew Richards
BIS,Met Office,2020-09-24,04 CONTRACTORS,GOVERNMENT SERVICES,HAYS SPECIALIST RECRUITMENT LTD,446863,183.08,773695871,P108020-SERVICE-Contractor: Andrew Richards
BIS,Met Office,2020-09-24,04 CONTRACTORS,GOVERNMENT SERVICES,HAYS SPECIALIST RECRUITMENT LTD,446880,183.08,773695871,P108020-SERVICE-Contractor: Andrew Richards
BIS,Met Office,2020-09-30,04 CONTRACTORS,GOVERNMENT SERVICES,HAYS SPECIALIST RECRUITMENT LTD,447029,183.08,773695871,P108020-SERVICE-Contractor: Andrew Richards
BIS,Met Office,2020-09-03,04 CONTRACTORS,GOVERNMENT SERVICES,HAYS SPECIALIST RECRUITMENT LTD,446156,366.16,773695871,P108397-SERVICE-Contractor: Andrew Richards
BIS,Met Office,2020-09-10,04 CONTRACTORS,GOVERNMENT SERVICES,HAYS SPECIALIST RECRUITMENT LTD,446343,366.16,773695871,P108397-SERVICE-Contractor: Andrew Richards
BIS,Met Office,2020-09-17,04 CONTRACTORS,GOVERNMENT SERVICES,HAYS SPECIALIST RECRUITMENT LTD,446632,366.16,773695871,P108397-SERVICE-Contractor: Andrew Richards
BIS,Met Office,2020-09-24,04 CONTRACTORS,GOVERNMENT SERVICES,HAYS SPECIALIST RECRUITMENT LTD,446865,366.16,773695871,P108397-SERVICE-Contractor: Andrew Richards
BIS,Met Office,2020-09-30,04 CONTRACTORS,GOVERNMENT SERVICES,HAYS SPECIALIST RECRUITMENT LTD,447026,366.16,773695871,P108397-SERVICE-Contractor: Andrew Richards
BIS,Met Office,2020-09-02,08 SOFTWARE LICENCES,GOVERNMENT SERVICES,"IBL SOFTWARE ENGINEERING, SPOL S.R.O.",21584,9746.16,SK2020241883,C008279-SERVICE-Licence to use IBL�s software for customer�s
BIS,Met Office,2020-09-30,08 SOFTWARE LICENCES,GOVERNMENT SERVICES,"IBL SOFTWARE ENGINEERING, SPOL S.R.O.",21750,17227.44,SK2020241883,C008348-SERVICE-Hungarian Defence Forces NAMIS XP License (01
BIS,Met Office,2020-09-02,08 SOFTWARE LICENCES,GOVERNMENT SERVICES,"IBL SOFTWARE ENGINEERING, SPOL S.R.O.",21731,69203.14,SK2020241883,C008326-SERVICE-Open Weather System 01/06/20-30/11/20 license
BIS,Met Office,2020-09-02,11 SERVICES,GOVERNMENT SERVICES,"INTELLOVATIONS, LLC",9853,1857.61,-,P108175-SERVICE-MET OFFICE - INTELLOVATIONS ONLINE SUBSCRIPTI
BIS,Met Office,2020-09-09,11 SERVICES,GOVERNMENT SERVICES,"INTELLOVATIONS, LLC",9911,2177.55,-,P108175-SERVICE-MET OFFICE - INTELLOVATIONS ONLINE SUBSCRIPTI
BIS,Met Office,2020-09-02,11 SERVICES,GOVERNMENT SERVICES,"INTELLOVATIONS, LLC",9820,2892.86,-,P108175-SERVICE-MET OFFICE - INTELLOVATIONS ONLINE SUBSCRIPTI
BIS,Met Office,2020-09-17,04 CONTRACTORS,GOVERNMENT SERVICES,JOBSEEKERS RECRUITMENT SERVICES LTD,446504,358,130 1297 14,P108194-SERVICE-Contractor   : Hannah Phillips
BIS,Met Office,2020-09-24,04 CONTRACTORS,GOVERNMENT SERVICES,JOBSEEKERS RECRUITMENT SERVICES LTD,447005,366.95,130 1297 14,P108194-SERVICE-Contractor   : Hannah Phillips
BIS,Met Office,2020-09-30,04 CONTRACTORS,GOVERNMENT SERVICES,JOBSEEKERS RECRUITMENT SERVICES LTD,447183,393.8,130 1297 14,P108133-SERVICE-Assignment: Britta Skinner
BIS,Met Office,2020-09-10,04 CONTRACTORS,GOVERNMENT SERVICES,JOBSEEKERS RECRUITMENT SERVICES LTD,446266,402.75,130 1297 14,P108194-SERVICE-Contractor   : Hannah Phillips
BIS,Met Office,2020-09-17,04 CONTRACTORS,GOVERNMENT SERVICES,JOBSEEKERS RECRUITMENT SERVICES LTD,446717,402.75,130 1297 14,P108194-SERVICE-Contractor   : Hannah Phillips
BIS,Met Office,2020-09-30,04 CONTRACTORS,GOVERNMENT SERVICES,JOBSEEKERS RECRUITMENT SERVICES LTD,447182,402.75,130 1297 14,P108194-SERVICE-Contractor   : Hannah Phillips
BIS,Met Office,2020-09-17,04 CONTRACTORS,GOVERNMENT SERVICES,JOBSEEKERS RECRUITMENT SERVICES LTD,446503,515.7,130 1297 14,P107552-SERVICE-Contractor: Sophie Martin
BIS,Met Office,2020-09-17,04 CONTRACTORS,GOVERNMENT SERVICES,JOBSEEKERS RECRUITMENT SERVICES LTD,446505,528.05,130 1297 14,P108133-SERVICE-Assignment: Britta Skinner
BIS,Met Office,2020-09-10,04 CONTRACTORS,GOVERNMENT SERVICES,JOBSEEKERS RECRUITMENT SERVICES LTD,446265,662.3,130 1297 14,P108135-SERVICE-Contractor: Vanessa Hickman
BIS,Met Office,2020-09-17,04 CONTRACTORS,GOVERNMENT SERVICES,JOBSEEKERS RECRUITMENT SERVICES LTD,446716,662.3,130 1297 14,P108135-SERVICE-Contractor: Vanessa Hickman
BIS,Met Office,2020-09-17,04 CONTRACTORS,GOVERNMENT SERVICES,JOBSEEKERS RECRUITMENT SERVICES LTD,446719,662.3,130 1297 14,P108133-SERVICE-Assignment: Britta Skinner
BIS,Met Office,2020-09-30,04 CONTRACTORS,GOVERNMENT SERVICES,JOBSEEKERS RECRUITMENT SERVICES LTD,447012,662.3,130 1297 14,P108135-SERVICE-Contractor: Vanessa Hickman
BIS,Met Office,2020-09-30,04 CONTRACTORS,GOVERNMENT SERVICES,JOBSEEKERS RECRUITMENT SERVICES LTD,447180,662.3,130 1297 14,P108135-SERVICE-Contractor: Vanessa Hickman
BIS,Met Office,2020-09-10,04 CONTRACTORS,GOVERNMENT SERVICES,JOBSEEKERS RECRUITMENT SERVICES LTD,446264,848.04,130 1297 14,P108043-SERVICE-Contractor: Michelle Harding
BIS,Met Office,2020-09-10,04 CONTRACTORS,GOVERNMENT SERVICES,JOBSEEKERS RECRUITMENT SERVICES LTD,446267,848.04,130 1297 14,P107552-SERVICE-Contractor: Sophie Martin
BIS,Met Office,2020-09-17,04 CONTRACTORS,GOVERNMENT SERVICES,JOBSEEKERS RECRUITMENT SERVICES LTD,446715,848.04,130 1297 14,P108043-SERVICE-Contractor: Michelle Harding
BIS,Met Office,2020-09-17,04 CONTRACTORS,GOVERNMENT SERVICES,JOBSEEKERS RECRUITMENT SERVICES LTD,446720,848.04,130 1297 14,P108043-SERVICE-Contractor: Michelle Harding
BIS,Met Office,2020-09-24,04 CONTRACTORS,GOVERNMENT SERVICES,JOBSEEKERS RECRUITMENT SERVICES LTD,446757,882.42,130 1297 14,P107552-SERVICE-Contractor: Sophie Martin
BIS,Met Office,2020-09-24,04 CONTRACTORS,GOVERNMENT SERVICES,JOBSEEKERS RECRUITMENT SERVICES LTD,447004,899.61,130 1297 14,P107552-SERVICE-Contractor: Sophie Martin
BIS,Met Office,2020-09-30,04 CONTRACTORS,GOVERNMENT SERVICES,JOBSEEKERS RECRUITMENT SERVICES LTD,447179,911.07,130 1297 14,P107552-SERVICE-Contractor: Sophie Martin
BIS,Met Office,2020-09-17,11 SERVICES,GOVERNMENT SERVICES,MICRO FOCUS SOFTWARE UK LTD,9930,-15592.11,GB 275 5061 96,P108174-SERVICE-UK-V GWC Integration Evaluation Project
BIS,Met Office,2020-09-17,11 SERVICES,GOVERNMENT SERVICES,MICRO FOCUS SOFTWARE UK LTD,9921,15137.98,GB 275 5061 96,P108174-SERVICE-UK-V GWC Integration Evaluation Project
BIS,Met Office,2020-09-10,11 SERVICES,GOVERNMENT SERVICES,OFFICE OF NATIONAL STATISTICS,446345,450,888 846 049,P108345-SERVICE-MRP3855/2015 Data Access Agreements
BIS,Met Office,2020-09-30,11 SERVICES,GOVERNMENT SERVICES,PAUL WATKISS ASSOCIATES LTD,447168,32158,869587641,P108449-SERVICE-SEB / VfM services under HIGHWAY
BIS,Met Office,2020-09-17,08 SOFTWARE LICENCES,GOVERNMENT SERVICES,PRESENTATION CARTOGRAPHY LTD,446510,2250,-,C007460-SERVICE-STV - Server Licence (YEAR 1 - 5)
BIS,Met Office,2020-09-30,08 SOFTWARE LICENCES,GOVERNMENT SERVICES,PRESERVICA LTD,447136,9480,182627102,P108582-SERVICE-PRESERVICA CLOUD EDITION RENEWAL - Year One -
BIS,Met Office,2020-09-30,04 CONTRACTORS,GOVERNMENT SERVICES,QUALSERV CONSULTING LTD,447165,8550,719067718,P108103-SERVICE-Contractor: Nicholas Russell
BIS,Met Office,2020-09-10,04 CONTRACTORS,GOVERNMENT SERVICES,QUALSERV CONSULTING LTD,446271,11250,719067718,P108103-SERVICE-Contractor: Nicholas Russell
BIS,Met Office,2020-09-30,06 ACCOMMODATION,GOVERNMENT SERVICES,REDACTED � PERSONAL DATA,447188,35,-,-
BIS,Met Office,2020-09-30,06 ACCOMMODATION,GOVERNMENT SERVICES,REDACTED � PERSONAL DATA,447187,35,UTR: 6885284589,-
BIS,Met Office,2020-09-30,06 ACCOMMODATION,GOVERNMENT SERVICES,REDACTED � PERSONAL DATA,447187,200,UTR: 6885284589,-
BIS,Met Office,2020-09-30,06 ACCOMMODATION,GOVERNMENT SERVICES,REDACTED � PERSONAL DATA,447188,250,-,-
BIS,Met Office,2020-09-23,11 SERVICES,GOVERNMENT SERVICES,REGENTS OF THE UNIVERSITY OF COLORADO,9907,38393.66,-,P106709-SERVICE-Attribution of high-impact events using 20th
BIS,Met Office,2020-09-23,11 SERVICES,GOVERNMENT SERVICES,REGENTS OF THE UNIVERSITY OF COLORADO,9908,38393.66,-,P106709-SERVICE-Attribution of high-impact events using 20th
BIS,Met Office,2020-09-10,11 SERVICES,GOVERNMENT SERVICES,ROWE IT LTD,446278,630,924964394,"P108165-SERVICE-DOS-10328, DSPINTEROP DMP � Interoperability"
BIS,Met Office,2020-09-03,11 SERVICES,GOVERNMENT SERVICES,ROWE IT LTD,446283,10346.25,924964394,P108291-SERVICE-DOS3-TWM-004  20/06/2020  30/09/2020
BIS,Met Office,2020-09-03,08 SOFTWARE LICENCES,GOVERNMENT SERVICES,RUNTIME COLLECTIVE LTD T/A BRANDWATCH,446118,2700,754750710,"P106027-SERVICE-Access to Brandwatch Analytics with 50,000 me"
BIS,Met Office,2020-09-24,11 SERVICES,GOVERNMENT SERVICES,SOCIAL SENSING LTD,446775,2758,-,"P108096-SERVICE-Licence, support & maintenance Social Sensing"
BIS,Met Office,2020-09-17,04 CONTRACTORS,GOVERNMENT SERVICES,SOLOS CONSULTANTS LTD,446492,9464.16,812035476,P108056-SERVICE-Contractor: Flavio Velasquez
BIS,Met Office,2020-09-09,11 SERVICES,GOVERNMENT SERVICES,SOUTHSOUTHNORTH,446171,61743.04,4790219721,"P104414-SERVICE-WISER Phase 2 � Support, Research and Learnin"
BIS,Met Office,2020-09-09,11 SERVICES,GOVERNMENT SERVICES,TANZANIA METEOROLOGICAL AGENCY,445336,26000,-,P105625-SERVICE-WISER - National Projecs Tanzania
BIS,Met Office,2020-09-17,11 SERVICES,GOVERNMENT SERVICES,TREAD LIGHT LTD,446732,2745.12,273398372,P108144-SERVICE-Met Office Merchandise Huskup Coffee Cups
BIS,Met Office,2020-09-30,11 SERVICES,GOVERNMENT SERVICES,UK ATOMIC ENERGY AUTHORITY,447114,5000,GB570101391,P107919-SERVICE-EXC20-5: Data structures and standards
BIS,Met Office,2020-09-30,11 SERVICES,GOVERNMENT SERVICES,UK ATOMIC ENERGY AUTHORITY,447117,11279.29,GB570101391,P107919-SERVICE-EXC20-5: Data structures and standards
BIS,Met Office,2020-09-17,11 SERVICES,GOVERNMENT SERVICES,UK CENTRE FOR ECOLOGY & HYDROLOGY (UKCEH),446515,127973.17,336940192,P107514-SERVICE-CA19-3 UK Emissions Modelling System
BIS,Met Office,2020-09-17,13 MISCELLANEOUS,GOVERNMENT SERVICES,University College London,446733,2000,524371168,P104175-SERVICE-4 Year MSSL Studentship - Geoeffectiveness of
BIS,Met Office,2020-09-10,11 SERVICES,GOVERNMENT SERVICES,UNIVERSITY OF EXETER,445167,-13216.78,142047795,P107948-SERVICE-Uni of Exeter SST CSSP Brazil
BIS,Met Office,2020-09-10,11 SERVICES,GOVERNMENT SERVICES,UNIVERSITY OF EXETER,444842,13216.78,142047795,P107948-SERVICE-Uni of Exeter SST CSSP Brazil
BIS,Met Office,2020-09-30,11 SERVICES,GOVERNMENT SERVICES,University Of Reading,446934,-38998.19,200012659,P106861-SERVICE-Science Research - WCSSP India WP2 (IND4) STI
BIS,Met Office,2020-09-10,11 SERVICES,GOVERNMENT SERVICES,University Of Reading,446141,19833.46,200012659,P107664-SERVICE-Support for easy access/analysis of complex m
BIS,Met Office,2020-09-03,11 SERVICES,GOVERNMENT SERVICES,University Of Reading,445953,20278.72,200012659,P107509-SERVICE-Demonstration of a climate service to address
BIS,Met Office,2020-09-30,11 SERVICES,GOVERNMENT SERVICES,University Of Reading,445954,38998.19,200012659,P106861-SERVICE-Science Research - WCSSP India WP2 (IND4) STI
BIS,Met Office,2020-09-10,11 SERVICES,GOVERNMENT SERVICES,University Of Reading,445969,51096.47,200012659,P106856-SERVICE-Science Research - WCSSP India WP2 (IND3) IMP
BIS,Met Office,2020-09-17,11 SERVICES,GOVERNMENT SERVICES,University Of Reading,445956,85000,200012659,"P107729-SERVICE-CSSP China WP4 Air-sea interactions, teleconn"
BIS,Met Office,2020-09-30,11 SERVICES,GOVERNMENT SERVICES,University Of Reading,446941,91969.02,200012659,P103593-SERVICE-Generation of high resolution extreme tempera
BIS,Met Office,2020-09-30,11 SERVICES,GOVERNMENT SERVICES,University Of Reading,447110,131420.41,200012659,P105053-SERVICE-Aerosols and Climate Dynamics
BIS,Met Office,2020-09-24,11 SERVICES,GOVERNMENT SERVICES,UNIVERSITY OF SUSSEX,445680,13675.64,692712320,"P107796-SERVICE-Delivery of Output 3.4 � Research, on WISER H"
BIS,Met Office,2020-09-24,11 SERVICES,GOVERNMENT SERVICES,UNIVERSITY OF WORCESTER,447021,-9600,100103412,P107993-SERVICE-Provision of pollen forecasting assistance an
BIS,Met Office,2020-09-24,11 SERVICES,GOVERNMENT SERVICES,UNIVERSITY OF WORCESTER,446928,9600,100103412,P107993-SERVICE-Provision of pollen forecasting assistance an
BIS,Met Office,2020-09-24,11 SERVICES,GOVERNMENT SERVICES,UNIVERSITY OF WORCESTER,447020,9600,100103412,P107993-SERVICE-Provision of pollen forecasting assistance an
BIS,Met Office,2020-09-24,11 SERVICES,GOVERNMENT SERVICES,VAISALA LTD,446931,1450,336100011,P108413-SERVICE-Vaisala Training for DfI Roads
BIS,Met Office,2020-09-30,04 CONTRACTORS,GOVERNMENT SERVICES,WA CONSULTANTS LTD,447173,906,876328977,P107774-SERVICE-Contractor: Fiona Williamson
BIS,Met Office,2020-09-17,04 CONTRACTORS,GOVERNMENT SERVICES,WA CONSULTANTS LTD,446739,1620,876328977,P108258-SERVICE-Contractor:John Mungai
BIS,Met Office,2020-09-30,11 SERVICES,GOVERNMENT SERVICES,World Meteorological Organization,447115,48987,-,P103809-SERVICE-AMDAR Project WISER Phase 2
BIS,Met Office,2020-09-30,11 SERVICES,GOVERNMENT SERVICES,World Meteorological Organization,447137,279917,-,P103999-SERVICE-WISER Phase 2 Highway Contract
BIS,Met Office,2020-09-24,03 STAFF COSTS T&S,OPERATIONS,AIRPORT CAR RENTALS LTD,446923,320,-,P108322-SERVICE-Gibraltar lease vehicle G2129F
BIS,Met Office,2020-09-24,11 SERVICES,OPERATIONS,APPLIED SATELLITE TECHNOLOGY SYSTEMS LTD,446887,32.81,720108683,-
BIS,Met Office,2020-09-24,12 INTERNATIONAL,OPERATIONS,APPLIED SATELLITE TECHNOLOGY SYSTEMS LTD,446889,32.81,720108683,-
BIS,Met Office,2020-09-24,11 SERVICES,OPERATIONS,APPLIED SATELLITE TECHNOLOGY SYSTEMS LTD,446892,32.81,720108683,-
BIS,Met Office,2020-09-24,11 SERVICES,OPERATIONS,APPLIED SATELLITE TECHNOLOGY SYSTEMS LTD,446893,136.74,720108683,-
BIS,Met Office,2020-09-24,11 SERVICES,OPERATIONS,APPLIED SATELLITE TECHNOLOGY SYSTEMS LTD,446891,180.31,720108683,P107170-SERVICE-Iridium services for MO MSE development activ
BIS,Met Office,2020-09-24,11 SERVICES,OPERATIONS,APPLIED SATELLITE TECHNOLOGY SYSTEMS LTD,446888,301.06,720108683,-
BIS,Met Office,2020-09-24,11 SERVICES,OPERATIONS,APPLIED SATELLITE TECHNOLOGY SYSTEMS LTD,446890,10575.61,720108683,P108012-SERVICE-AST Iridium Communication System charges
BIS,Met Office,2020-09-09,11 SERVICES,OPERATIONS,"AXYS TECHNOLOGIES, INC",9917,113.54,-,P014201-SERVICE-Marine Observation Data - Headed up by NOC -
BIS,Met Office,2020-09-23,11 SERVICES,OPERATIONS,"AXYS TECHNOLOGIES, INC",9940,115.73,-,P014201-SERVICE-Marine Observation Data - Headed up by NOC -
BIS,Met Office,2020-09-24,13 MISCELLANEOUS,OPERATIONS,BARSC,446899,350,-,-
BIS,Met Office,2020-09-16,11 SERVICES,OPERATIONS,BENTLEY WALKER LTD,9915,537.89,107995930,-
BIS,Met Office,2020-09-16,11 SERVICES,OPERATIONS,BENTLEY WALKER LTD,9916,537.89,107995930,-
BIS,Met Office,2020-09-10,11 SERVICES,OPERATIONS,BOC LTD,446403,-95.71,226556555,C008336-SERVICE-BOC Consumable gas provision Aug20-Aug21
BIS,Met Office,2020-09-10,11 SERVICES,OPERATIONS,BOC LTD,446198,11853.42,226556555,C008336-SERVICE-BOC Consumable gas provision Aug20-Aug21
BIS,Met Office,2020-09-03,03 STAFF COSTS T&S,OPERATIONS,CARTUS LTD,445873,137,768489458,-
BIS,Met Office,2020-09-17,03 STAFF COSTS T&S,OPERATIONS,CARTUS LTD,446431,250,768489458,-
BIS,Met Office,2020-09-03,03 STAFF COSTS T&S,OPERATIONS,CARTUS LTD,445868,330.24,768489458,-
BIS,Met Office,2020-09-03,03 STAFF COSTS T&S,OPERATIONS,CARTUS LTD,446204,391.07,768489458,-
BIS,Met Office,2020-09-03,03 STAFF COSTS T&S,OPERATIONS,CARTUS LTD,445871,1885.82,768489458,-
BIS,Met Office,2020-09-03,03 STAFF COSTS T&S,OPERATIONS,CARTUS LTD,445864,2940,768489458,-
BIS,Met Office,2020-09-03,03 STAFF COSTS T&S,OPERATIONS,CARTUS LTD,445867,4770,768489458,-
BIS,Met Office,2020-09-03,11 SERVICES,OPERATIONS,CATALYST IT,446221,1301.87,978169262,P108060-SERVICE-Met Office Totara LMS Hosting - 4/3/2020 to 3
BIS,Met Office,2020-09-10,03 STAFF COSTS T&S,OPERATIONS,CHARLIE'S TRAVEL LTD,446360,387,783848277,P108434-SERVICE-Taxis to and from RAF Brize Norton (Ascension
BIS,Met Office,2020-09-10,03 STAFF COSTS T&S,OPERATIONS,CHARLIE'S TRAVEL LTD,446360,1554.67,783848277,P108434-SERVICE-Taxi services to and from RAF Brize Norton (F
BIS,Met Office,2020-09-24,11 SERVICES,OPERATIONS,CLOUDREACH EUROPE LIMITED,446783,6952.28,978187168,P106953-SERVICE-FGS G Cloud 10 Extension - 12 months
BIS,Met Office,2020-09-23,11 SERVICES,OPERATIONS,COMMISIONERS OF IRISH LIGHT,21801,1883.66,0509659V,P108534-SERVICE-Additional work to finalise K1 / K2 builds.
BIS,Met Office,2020-09-23,07 EQUIPMENT,OPERATIONS,COMMISIONERS OF IRISH LIGHT,21801,2865.19,0509659V,P108534-SERVICE-Equipment required to finalise K1 / K2 buoy b
BIS,Met Office,2020-09-23,10 EQUIPMENT MAINTENANCE,OPERATIONS,COMMISIONERS OF IRISH LIGHT,21800,6832.87,0509659V,P108334-SERVICE-Phase 2 of buoy assembly work
BIS,Met Office,2020-09-03,07 EQUIPMENT,OPERATIONS,CPC BATTERY SERVICES LTD,444991,6749.76,223766167,P108304-SERVICE-8G27 - 12V 88Ah MK Gel Battery
BIS,Met Office,2020-09-16,07 EQUIPMENT,OPERATIONS,DATA BUOY INSTRUMENTATION LLC,9929,10134.87,-,P108386-SERVICE-WOCE-SVP-Barometer Drifter Upgrade with:
BIS,Met Office,2020-09-04,03 STAFF COSTS T&S,OPERATIONS,DBS FINANCE RECEIPTS CTS,445998,4004,888805068,-
BIS,Met Office,2020-09-04,03 STAFF COSTS T&S,OPERATIONS,DBS FINANCE RECEIPTS CTS,446172,4015,888805068,-
BIS,Met Office,2020-09-04,03 STAFF COSTS T&S,OPERATIONS,DBS FINANCE RECEIPTS CTS,446205,4105,888805068,-
BIS,Met Office,2020-09-17,STOCK,OPERATIONS,DHL INTERNATIONAL (UK) LTD,446703,56,751812341,-
BIS,Met Office,2020-09-03,08 SOFTWARE LICENCES,OPERATIONS,DXC TECHNOLOGY,446143,11850,GB432995915,P107167-SERVICE-Additional Non-Prod ServiceNow Instance - sub
BIS,Met Office,2020-09-24,12 INTERNATIONAL,OPERATIONS,ECMWF,446629,604061.9,NOTVATREG,-
BIS,Met Office,2020-09-02,11 SERVICES,OPERATIONS,"EUTELSAT, S.A.",21722,3115.51,-,P108001-SERVICE-Managed EDP & Ground Services E10A / F02 serv
BIS,Met Office,2020-09-02,11 SERVICES,OPERATIONS,"EUTELSAT, S.A.",21723,4013.84,-,P108000-SERVICE-Capacity & Ground Services 113WA / K17 - 1-Ap
BIS,Met Office,2020-09-17,03 STAFF COSTS T&S,OPERATIONS,FALKLAND ISLAND COMPANY LTD,446642,6.6,N/A,P106452-SERVICE-Lease vehicles for the Met Office Falkland Is
BIS,Met Office,2020-09-10,03 STAFF COSTS T&S,OPERATIONS,FALKLAND ISLAND COMPANY LTD,446437,700,N/A,P106452-SERVICE-Lease vehicles for the Met Office Falkland Is
BIS,Met Office,2020-09-17,03 STAFF COSTS T&S,OPERATIONS,FALKLAND ISLAND COMPANY LTD,446706,700,N/A,P106452-SERVICE-Lease vehicles for the Met Office Falkland Is
BIS,Met Office,2020-09-17,03 STAFF COSTS T&S,OPERATIONS,FALKLAND ISLAND COMPANY LTD,446707,700,N/A,P106452-SERVICE-Lease vehicles for the Met Office Falkland Is
BIS,Met Office,2020-09-17,03 STAFF COSTS T&S,OPERATIONS,FALKLAND ISLAND COMPANY LTD,446708,700,N/A,P106452-SERVICE-Lease vehicles for the Met Office Falkland Is
BIS,Met Office,2020-09-17,03 STAFF COSTS T&S,OPERATIONS,FALKLAND ISLAND COMPANY LTD,446709,700,N/A,P106452-SERVICE-Lease vehicles for the Met Office Falkland Is
BIS,Met Office,2020-09-17,11 SERVICES,OPERATIONS,GAMMA TELECOM LTD,446766,3181.04,823820344,P107995-SERVICE-Additional funds for PO P106381 - Gamma Initi
BIS,Met Office,2020-09-10,04 CONTRACTORS,OPERATIONS,HAYS SPECIALIST RECRUITMENT LTD,442336,366.15,773695871,P107692-SERVICE-Contractor: Andrew Richards
BIS,Met Office,2020-09-10,04 CONTRACTORS,OPERATIONS,HAYS SPECIALIST RECRUITMENT LTD,441662,366.16,773695871,P107692-SERVICE-Contractor: Andrew Richards
BIS,Met Office,2020-09-03,04 CONTRACTORS,OPERATIONS,HAYS SPECIALIST RECRUITMENT LTD,443811,366.16,773695871,P107692-SERVICE-Contractor: Andrew Richards
BIS,Met Office,2020-09-10,04 CONTRACTORS,OPERATIONS,HAYS SPECIALIST RECRUITMENT LTD,446428,366.16,773695871,P107692-SERVICE-Contractor: Andrew Richards
BIS,Met Office,2020-09-03,04 CONTRACTORS,OPERATIONS,HAYS SPECIALIST RECRUITMENT LTD,446201,731,773695871,P107661-SERVICE-Contractor: James Richards
BIS,Met Office,2020-09-03,04 CONTRACTORS,OPERATIONS,HAYS SPECIALIST RECRUITMENT LTD,446202,1827.5,773695871,P107661-SERVICE-Contractor: James Richards
BIS,Met Office,2020-09-10,06 ACCOMMODATION,OPERATIONS,INMARSAT SOLUTIONS (CANADA) INC,446340,836.4,766144223,P107159-SERVICE-Renewal of Inmarsat Comms account
BIS,Met Office,2020-09-17,04 CONTRACTORS,OPERATIONS,JOBSEEKERS RECRUITMENT SERVICES LTD,446507,447.23,130 1297 14,P108283-SERVICE-Contractor: Martin Young
BIS,Met Office,2020-09-10,04 CONTRACTORS,OPERATIONS,JOBSEEKERS RECRUITMENT SERVICES LTD,446268,634.54,130 1297 14,P108283-SERVICE-Contractor: Martin Young
BIS,Met Office,2020-09-30,04 CONTRACTORS,OPERATIONS,JOBSEEKERS RECRUITMENT SERVICES LTD,447178,749.21,130 1297 14,P108283-SERVICE-Contractor: Martin Young
BIS,Met Office,2020-09-24,04 CONTRACTORS,OPERATIONS,JOBSEEKERS RECRUITMENT SERVICES LTD,447006,879.18,130 1297 14,P108283-SERVICE-Contractor: Martin Young
BIS,Met Office,2020-09-03,07 EQUIPMENT,OPERATIONS,KEMTRON LTD,445898,19.95,GB719971196,P108341-SERVICE-Carriage charges
BIS,Met Office,2020-09-03,07 EQUIPMENT,OPERATIONS,KEMTRON LTD,445898,160,GB719971196,P108341-SERVICE-Tooling
BIS,Met Office,2020-09-03,07 EQUIPMENT,OPERATIONS,KEMTRON LTD,445898,441,GB719971196,P108341-SERVICE-KEM2380-30 - Circular honeycomb vent
BIS,Met Office,2020-09-23,11 SERVICES,OPERATIONS,MEIHUIZEN INTERNATIONAL,443655,188.81,4450101763,-
BIS,Met Office,2020-09-23,13 MISCELLANEOUS,OPERATIONS,MEIHUIZEN INTERNATIONAL,426886,249.74,4450101763,-
BIS,Met Office,2020-09-10,11 SERVICES,OPERATIONS,MOMENTUM INCORPORATED,446383,800,598958541,P108488-SERVICE-Optimising Your Own Performance Programme (al
BIS,Met Office,2020-09-10,11 SERVICES,OPERATIONS,MOMENTUM INCORPORATED,446387,20000,598958541,P108488-SERVICE-Optimising Your Own Performance Programme (al
BIS,Met Office,2020-09-10,12 INTERNATIONAL,OPERATIONS,MYACORN LTD,446419,8850,-,P108278-SERVICE-OpenCDMS API and Data Model as WMO LOA
BIS,Met Office,2020-09-16,11 SERVICES,OPERATIONS,NSSL GLOBAL LTD,9897,53.39,725151948,P101522-SERVICE-Combined estimated maximum airtime usuage for
BIS,Met Office,2020-09-16,11 SERVICES,OPERATIONS,NSSL GLOBAL LTD,9898,53.39,725151948,P101423-SERVICE-Estimated maximum airtine usage for BGAN per
BIS,Met Office,2020-09-03,11 SERVICES,OPERATIONS,NSSL GLOBAL LTD,445896,8883.51,725151948,P101421-SERVICE-Broad Ip System DVB Exercise (00200E105D7E)
BIS,Met Office,2020-09-03,11 SERVICES,OPERATIONS,NSSL GLOBAL LTD,445896,9000,725151948,P101421-SERVICE-Broad IP System DVB Italy (00200E1053B5)
BIS,Met Office,2020-09-30,04 CONTRACTORS,OPERATIONS,OUTSOURCE UK LIMITED,447195,7096.8,576118722,P107930-SERVICE-Contractor: Oluwaseun Ibidunmoye
BIS,Met Office,2020-09-03,04 CONTRACTORS,OPERATIONS,OUTSOURCE UK LIMITED,446216,11828,576118722,P107930-SERVICE-Contractor: Oluwaseun Ibidunmoye
BIS,Met Office,2020-09-10,11 SERVICES,OPERATIONS,PAA\VQSET LTD,446131,110,899796511,-
BIS,Met Office,2020-09-30,11 SERVICES,OPERATIONS,PLANET OCEAN LTD,447133,300,834477212,P108598-SERVICE-Buoy tracker airtime agreement
BIS,Met Office,2020-09-24,11 SERVICES,OPERATIONS,PREDERI,446933,13200,135 2949 04,C008278-SERVICE-2-Day SPIN Selling Course 14th & 15th July 20
BIS,Met Office,2020-09-30,04 CONTRACTORS,OPERATIONS,QUALSERV CONSULTING LTD,447166,5973.6,719067718,P108168-SERVICE-Contractor: Daniel Uttley
BIS,Met Office,2020-09-10,04 CONTRACTORS,OPERATIONS,QUALSERV CONSULTING LTD,446347,6916.8,719067718,P108168-SERVICE-Contractor: Daniel Uttley
BIS,Met Office,2020-09-17,07 EQUIPMENT,OPERATIONS,R S Aqua Ltd,446725,2764,370059760,P108447-SERVICE-Upgrade of Waverider Buoy
BIS,Met Office,2020-09-10,06 ACCOMMODATION,OPERATIONS,RAISE TELECOMS LTD,446416,3627,166016521,P108468-SERVICE-Met Office Old Buckenham - Site survey and re
BIS,Met Office,2020-09-10,10 EQUIPMENT MAINTENANCE,OPERATIONS,RAISE TELECOMS LTD,446511,12654,166016521,"C008353-SERVICE-Hameldon Radome Clean, Hydrophobic Coat & Gen"
BIS,Met Office,2020-09-23,10 EQUIPMENT MAINTENANCE,OPERATIONS,RAYMETRICS S.A. (GREEK ACCOUNT),21803,1061.87,EL999641589,P108377-SERVICE-Repair of lidar hatch mechanism and piston re
BIS,Met Office,2020-09-23,10 EQUIPMENT MAINTENANCE,OPERATIONS,RAYMETRICS S.A. (GREEK ACCOUNT),21807,10981.87,EL999641589,-
BIS,Met Office,2020-09-24,04 CONTRACTORS,OPERATIONS,REDACTED � PERSONAL DATA,446900,1893.34,267253251,AUXOBFEE FAIR ISLE QTR2 D&JM WHEELER
BIS,Met Office,2020-09-09,12 INTERNATIONAL,OPERATIONS,REDACTED � PERSONAL DATA,9912,2674.19,-,P108141-SERVICE-Climsoft Project Coordinator Agreement 2020-2
BIS,Met Office,2020-09-30,11 SERVICES,OPERATIONS,REDACTED � PERSONAL DATA,447116,4633.2,-,-
BIS,Met Office,2020-09-10,07 EQUIPMENT,OPERATIONS,ROHDE & SCHWARZ UK LTD,446139,2229.16,215945163,P108384-SERVICE-FPC Spectrum Analyzer equipment as per quote
BIS,Met Office,2020-09-17,07 EQUIPMENT,OPERATIONS,ROHDE & SCHWARZ UK LTD,446531,12864.16,215945163,P108384-SERVICE-FPC Spectrum Analyzer equipment as per quote
BIS,Met Office,2020-09-10,11 SERVICES,OPERATIONS,ROWE IT LTD,446280,36312.5,924964394,"P108398-SERVICE-DOS-10328, DSPINTEROP DMP - Information & Hos"
BIS,Met Office,2020-09-10,11 SERVICES,OPERATIONS,ROWE IT LTD,446281,46521.25,924964394,P108394-SERVICE-TDA3 Tranche 10 Standalone TDAs
BIS,Met Office,2020-09-30,11 SERVICES,OPERATIONS,SOFTCAT LTD,444085,160.62,491848503,-
BIS,Met Office,2020-09-10,08 SOFTWARE LICENCES,OPERATIONS,SOFTCAT LTD,446499,26025,491848503,P108126-SERVICE-ServiceNow Field Service Management work - Ph
BIS,Met Office,2020-09-10,08 SOFTWARE LICENCES,OPERATIONS,SOFTCAT LTD,446277,52050,491848503,P108126-SERVICE-ServiceNow Field Service Management work - Ph
BIS,Met Office,2020-09-24,11 SERVICES,OPERATIONS,SOFTWIRE TECHNOLOGY LIMITED,446728,2520,752 1253 57,P107182-SERVICE-Call-Off Contract for Digital Outcomes and Sp
BIS,Met Office,2020-09-17,04 CONTRACTORS,OPERATIONS,SOLOS CONSULTANTS LTD,446493,1552.38,812035476,P108372-SERVICE-Contractor: Richard Acton
BIS,Met Office,2020-09-17,04 CONTRACTORS,OPERATIONS,SOLOS CONSULTANTS LTD,446493,7329.19,812035476,P107577-SERVICE-Contractor: Richard Acton
BIS,Met Office,2020-09-17,04 CONTRACTORS,OPERATIONS,SOLOS CONSULTANTS LTD,446469,8778,812035476,P108330-SERVICE-Contractor: Lee Sills
BIS,Met Office,2020-09-17,04 CONTRACTORS,OPERATIONS,SOLOS CONSULTANTS LTD,446472,16781.04,812035476,P108123-SERVICE-Contractor: Simon Pinkney
BIS,Met Office,2020-09-03,11 SERVICES,OPERATIONS,Trinity House,445947,1120,243120414,"C007968-SERVICE-Ship services for Brittany, Gascony, K1 & K2"
BIS,Met Office,2020-09-03,11 SERVICES,OPERATIONS,Trinity House,445948,1120,243120414,"C007968-SERVICE-Ship services for Brittany, Gascony, K1 & K2"
BIS,Met Office,2020-09-03,11 SERVICES,OPERATIONS,UK TELEMATICS LIMITED,446181,159.97,GB763051643,C008267-SERVICE-Telematics Hardware and Installation on-off c
BIS,Met Office,2020-09-03,11 SERVICES,OPERATIONS,UK TELEMATICS LIMITED,446183,159.97,GB763051643,C008267-SERVICE-Telematics Hardware and Installation on-off c
BIS,Met Office,2020-09-03,11 SERVICES,OPERATIONS,UK TELEMATICS LIMITED,446185,159.97,GB763051643,C008267-SERVICE-Telematics Hardware and Installation on-off c
BIS,Met Office,2020-09-03,11 SERVICES,OPERATIONS,UK TELEMATICS LIMITED,446189,159.97,GB763051643,C008267-SERVICE-Telematics Hardware and Installation on-off c
BIS,Met Office,2020-09-03,11 SERVICES,OPERATIONS,UK TELEMATICS LIMITED,446192,159.97,GB763051643,C008267-SERVICE-Telematics Hardware and Installation on-off c
BIS,Met Office,2020-09-03,11 SERVICES,OPERATIONS,UK TELEMATICS LIMITED,446195,159.97,GB763051643,C008267-SERVICE-Telematics Hardware and Installation on-off c
BIS,Met Office,2020-09-03,11 SERVICES,OPERATIONS,UK TELEMATICS LIMITED,446238,159.97,GB763051643,C008267-SERVICE-Telematics Hardware and Installation on-off c
BIS,Met Office,2020-09-03,11 SERVICES,OPERATIONS,UK TELEMATICS LIMITED,446188,201.95,GB763051643,C008267-SERVICE-Telematics Hardware and Installation on-off c
BIS,Met Office,2020-09-03,11 SERVICES,OPERATIONS,UK TELEMATICS LIMITED,446182,319.94,GB763051643,C008267-SERVICE-Telematics Hardware and Installation on-off c
BIS,Met Office,2020-09-03,11 SERVICES,OPERATIONS,UK TELEMATICS LIMITED,446184,319.94,GB763051643,C008267-SERVICE-Telematics Hardware and Installation on-off c
BIS,Met Office,2020-09-03,11 SERVICES,OPERATIONS,UK TELEMATICS LIMITED,446187,319.94,GB763051643,C008267-SERVICE-Telematics Hardware and Installation on-off c
BIS,Met Office,2020-09-03,11 SERVICES,OPERATIONS,UK TELEMATICS LIMITED,446191,319.94,GB763051643,C008267-SERVICE-Telematics Hardware and Installation on-off c
BIS,Met Office,2020-09-03,11 SERVICES,OPERATIONS,UK TELEMATICS LIMITED,446186,403.9,GB763051643,C008267-SERVICE-Telematics Hardware and Installation on-off c
BIS,Met Office,2020-09-03,11 SERVICES,OPERATIONS,UK TELEMATICS LIMITED,446190,479.91,GB763051643,C008267-SERVICE-Telematics Hardware and Installation on-off c
BIS,Met Office,2020-09-03,11 SERVICES,OPERATIONS,UK TELEMATICS LIMITED,446193,639.88,GB763051643,C008267-SERVICE-Telematics Hardware and Installation on-off c
BIS,Met Office,2020-09-03,11 SERVICES,OPERATIONS,UK TELEMATICS LIMITED,446194,1447.68,GB763051643,C008267-SERVICE-Telematics Hardware and Installation on-off c
BIS,Met Office,2020-09-03,11 SERVICES,OPERATIONS,UK TELEMATICS LIMITED,446180,2768.04,GB763051643,C008267-SERVICE-Telematics total operating costs over three y
BIS,Met Office,2020-09-24,11 SERVICES,OPERATIONS,UNIVERSITY OF CAMBRIDGE,446690,1200,214222124,-
BIS,Met Office,2020-09-09,STOCK,OPERATIONS,VAISALA OYJ,21696,0,FI01244162,"P108350-0026803-Unit, Window Blower,  Fan and Heater CL31"
BIS,Met Office,2020-09-09,STOCK,OPERATIONS,VAISALA OYJ,21697,0,FI01244162,C008300-0056449-RADIOSONDE VAISALA RS41-SG
BIS,Met Office,2020-09-30,11 SERVICES,OPERATIONS,VAISALA OYJ,21746,4023.87,FI01244162,P108381-SERVICE-GLD360 Lightning Data - June 2020
BIS,Met Office,2020-09-09,STOCK,OPERATIONS,VAISALA OYJ,21696,8601.88,FI01244162,"P108350-0026803-Unit, Window Blower,  Fan and Heater CL31"
BIS,Met Office,2020-09-23,PLANT AND EQUIPMENT,OPERATIONS,VAISALA OYJ,21737,19129.32,FI01244162,P108385-SERVICE-CL31 (2C1A1A1A1A1A1A1B) Standard Ceilometer
BIS,Met Office,2020-09-30,07 EQUIPMENT,OPERATIONS,VAISALA OYJ,21745,24936.43,FI01244162,C008341-9VRHZPIRKZ-032-RADIOSONDE VAISALA RS41-SGP
BIS,Met Office,2020-09-30,07 EQUIPMENT,OPERATIONS,VAISALA OYJ,21747,25063.65,FI01244162,C008341-9VRHZPIRKZ-032-RADIOSONDE VAISALA RS41-SGP
BIS,Met Office,2020-09-23,07 EQUIPMENT,OPERATIONS,VAISALA OYJ,21732,26804.73,FI01244162,C008339-9VRHZPIRKZ-001-RADIOSONDE VAISALA RS41-SG
BIS,Met Office,2020-09-30,07 EQUIPMENT,OPERATIONS,VAISALA OYJ,21748,45165.48,FI01244162,C008340-9VRHZPIRKZ-032-RADIOSONDE VAISALA RS41-SGP
BIS,Met Office,2020-09-09,STOCK,OPERATIONS,VAISALA OYJ,21697,67150.51,FI01244162,C008300-0056449-RADIOSONDE VAISALA RS41-SG
BIS,Met Office,2020-09-03,11 SERVICES,OPERATIONS,VOLKSWAGEN GROUP LEASING,446147,3697.1,BG745963883,P105883-SERVICE-4 Year lease of 9 VW Caddy Vans for RNM & PMO
BIS,Met Office,2020-09-03,11 SERVICES,OPERATIONS,VOLKSWAGEN GROUP LEASING,446148,3924.25,BG745963883,P106035-SERVICE-6 x Leased Skoda Karoq 2.0TDI SE-L 4x4 for ZZ
BIS,Met Office,2020-09-17,11 SERVICES,OPERATIONS,WESTERN LIGHTNING LTD,446742,438,193541006,P108142-SERVICE-Lightning protection at Weather Station - Eas
BIS,Met Office,2020-09-03,11 SERVICES,OPERATIONS,WORLDPAY LTD,446222,23.15,991280207,-
BIS,Met Office,2020-09-03,11 SERVICES,OPERATIONS,YOUNG CALIBRATION LIMITED,446228,10,673900720,P108368-SERVICE-Standard return carriage
BIS,Met Office,2020-09-03,10 EQUIPMENT MAINTENANCE,OPERATIONS,YOUNG CALIBRATION LIMITED,446228,3000,673900720,P108368-SERVICE-8 pt. ukas acc. calibration of 10 x Vector an
BIS,Met Office,2020-09-30,PAYE AND VAT,OTHER,APPLE CENTRAL TAXIS,447016,0,449238720,-
BIS,Met Office,2020-09-17,PAYE AND VAT,OTHER,BEIS,445031,0,888825550,-
BIS,Met Office,2020-09-17,PAYE AND VAT,OTHER,BEIS,445991,0,888825550,-
BIS,Met Office,2020-09-23,CASH AT BANK AND IN HAND,OTHER,CMC Partnership Global,444041,-2700,303694803,-
BIS,Met Office,2020-09-23,CASH AT BANK AND IN HAND,OTHER,CMC Partnership Global,441944,2700,303694803,-
BIS,Met Office,2020-09-17,CYCLESCHEME,OTHER,CYCLESCHEME LTD,446765,-832.5,850403556,C008331-P004255/001-Cyclescheme Order
BIS,Met Office,2020-09-17,CYCLESCHEME,OTHER,CYCLESCHEME LTD,445833,-800,850403556,C008200-P004255/001-Cyclescheme Order
BIS,Met Office,2020-09-17,CYCLESCHEME,OTHER,CYCLESCHEME LTD,446752,541.67,850403556,C008358-P004255/001-Cyclescheme Order
BIS,Met Office,2020-09-03,CYCLESCHEME,OTHER,CYCLESCHEME LTD,446127,554.99,850403556,C008346-P004255/001-Cyclescheme Order
BIS,Met Office,2020-09-10,CYCLESCHEME,OTHER,CYCLESCHEME LTD,446126,565.83,850403556,C008354-P004255/001-Cyclescheme Order
BIS,Met Office,2020-09-17,CYCLESCHEME,OTHER,CYCLESCHEME LTD,446356,610,850403556,C008354-P004255/001-Cyclescheme Order
BIS,Met Office,2020-09-17,CYCLESCHEME,OTHER,CYCLESCHEME LTD,446753,791.67,850403556,C008357-P004255/001-Cyclescheme Order
BIS,Met Office,2020-09-23,TRADE CREDITORS,OTHER,NATWEST COMMERCIAL CARDS DIVISION,446950,117372.45,N/A,-
BIS,Met Office,2020-09-11,13 MISCELLANEOUS,OTHER,PRECISE MEDIA MONITORING LTD,446393,-1666.67,849092202,-
BIS,Met Office,2020-09-11,13 MISCELLANEOUS,OTHER,PRECISE MEDIA MONITORING LTD,446392,-1666.66,849092202,-
BIS,Met Office,2020-09-11,13 MISCELLANEOUS,OTHER,PRECISE MEDIA MONITORING LTD,431710,3333.33,849092202,-
BIS,Met Office,2020-09-30,07 EQUIPMENT,SCIENCE,CAMTEC ENGINEERING LTD,447208,12,527033861,P108523-SERVICE-Delivery
BIS,Met Office,2020-09-30,07 EQUIPMENT,SCIENCE,CAMTEC ENGINEERING LTD,447208,250,527033861,P108523-SERVICE-Supply chassis plate sculpted as per your quo
BIS,Met Office,2020-09-10,11 SERVICES,SCIENCE,ESCOTT HUNT LTD,446440,900,815727127,P108509-SERVICE-Media Training for Scientists
BIS,Met Office,2020-09-09,11 SERVICES,SCIENCE,NIWA,445453,176000,GST059456466,P108366-SERVICE-Cylc Development Work - Tranche 2
BIS,Met Office,2020-09-10,13 MISCELLANEOUS,SCIENCE,UNIVERSITY OF EXETER,446178,2285.71,142047795,"P105386-SERVICE-CASE funding for Arthur Argles, as per contra"
BIS,Met Office,2020-09-10,11 SERVICES,SCIENCE,University Of Leeds,446134,12000,613451470,P107252-SERVICE-Head of Earth UK Earth System Science Extensi
BIS,Met Office,2020-09-10,13 MISCELLANEOUS,SCIENCE,University Of Reading,446163,333.33,200012659,P106053-SERVICE-CASE funding for Emanuele Gentile
BIS,Met Office,2020-09-24,13 MISCELLANEOUS,SCIENCE,University Of Reading,446875,333.33,200012659,P107130-SERVICE-CASE Funding - Max Coleman
BIS,Met Office,2020-09-10,13 MISCELLANEOUS,SCIENCE,University Of Reading,446112,333.34,200012659,P105299-SERVICE-CASE Funding for Noel Clancy
BIS,Met Office,2020-09-10,04 CONTRACTORS,SCIENCE,WA CONSULTANTS LTD,446352,9810,876328977,P108331-SERVICE-Contractor: David Brown
BIS,Met Office,2020-09-03,11 SERVICES,STRATEGIC INVESTMENT,BAE SYSTEMS APPLIED INTELLIGENCE LIMITED,445996,14070,GB641407169,"P108354-SERVICE-Cees van Berkel, contract variation no 2."
BIS,Met Office,2020-09-17,11 SERVICES,STRATEGIC INVESTMENT,BAE SYSTEMS APPLIED INTELLIGENCE LIMITED,446756,15008,GB641407169,"P108354-SERVICE-Cees van Berkel, contract variation no 2."
BIS,Met Office,2020-09-10,04 CONTRACTORS,STRATEGIC INVESTMENT,BJSS LIMITED,446385,16150,613295452,P108312-SERVICE-API Management - UX Research Consultant
BIS,Met Office,2020-09-10,05 CONSULTANTS,STRATEGIC INVESTMENT,CMC PARTNERSHIP CONSULTANCY LTD,446394,8723.5,305803330,P108200-SERVICE-Comms & Stakeholder engagement services for F
BIS,Met Office,2020-09-17,05 CONSULTANTS,STRATEGIC INVESTMENT,CMC PARTNERSHIP CONSULTANCY LTD,445223,10585,305803330,P108200-SERVICE-Comms & Stakeholder engagement services for F
BIS,Met Office,2020-09-10,05 CONSULTANTS,STRATEGIC INVESTMENT,CMC PARTNERSHIP CONSULTANCY LTD,446390,17955,305803330,P108224-SERVICE-FoOM Programme Management Services
BIS,Met Office,2020-09-10,11 SERVICES,STRATEGIC INVESTMENT,ELASTICSEARCH LTD,446259,5538.77,155790484,P107947-SERVICE-Elastic Search DTS Costs/Overages - added fun
BIS,Met Office,2020-09-10,04 CONTRACTORS,STRATEGIC INVESTMENT,HAYS SPECIALIST RECRUITMENT LTD,446341,462.06,773695871,P108268-SERVICE-Contractor: Anita Crockett
BIS,Met Office,2020-09-03,04 CONTRACTORS,STRATEGIC INVESTMENT,HAYS SPECIALIST RECRUITMENT LTD,446155,468.1,773695871,P108268-SERVICE-Contractor: Anita Crockett
BIS,Met Office,2020-09-03,04 CONTRACTORS,STRATEGIC INVESTMENT,HAYS SPECIALIST RECRUITMENT LTD,446158,468.1,773695871,P108268-SERVICE-Contractor: Anita Crockett
BIS,Met Office,2020-09-30,04 CONTRACTORS,STRATEGIC INVESTMENT,OUTSOURCE UK LIMITED,447220,4500,576118722,P108483-SERVICE-Contractor: Caroline Pomeroy
BIS,Met Office,2020-09-30,04 CONTRACTORS,STRATEGIC INVESTMENT,OUTSOURCE UK LIMITED,447213,7666.61,576118722,P108257-SERVICE-Contractor: Trudy Massey
BIS,Met Office,2020-09-10,04 CONTRACTORS,STRATEGIC INVESTMENT,QUALSERV CONSULTING LTD,446275,2241.1,719067718,P108329-SERVICE-Contractor: Bharat Adodra
BIS,Met Office,2020-09-30,04 CONTRACTORS,STRATEGIC INVESTMENT,QUALSERV CONSULTING LTD,447177,6650,719067718,P108319-SERVICE-Contractor: Edith Akidele
BIS,Met Office,2020-09-30,04 CONTRACTORS,STRATEGIC INVESTMENT,QUALSERV CONSULTING LTD,447176,8067.96,719067718,P108329-SERVICE-Contractor: Bharat Adodra
BIS,Met Office,2020-09-10,04 CONTRACTORS,STRATEGIC INVESTMENT,QUALSERV CONSULTING LTD,446270,8695.5,719067718,P108217-SERVICE-Contractor: Kemi Oketunde
BIS,Met Office,2020-09-10,04 CONTRACTORS,STRATEGIC INVESTMENT,QUALSERV CONSULTING LTD,446274,8750,719067718,P108319-SERVICE-Contractor: Edith Akidele
BIS,Met Office,2020-09-10,04 CONTRACTORS,STRATEGIC INVESTMENT,QUALSERV CONSULTING LTD,446275,9000,719067718,P107719-SERVICE-Contractor: Bharat Adora
BIS,Met Office,2020-09-30,04 CONTRACTORS,STRATEGIC INVESTMENT,QUALSERV CONSULTING LTD,447131,10533.17,719067718,P108256-SERVICE-Contractor: Adam Perona-Wright
BIS,Met Office,2020-09-10,04 CONTRACTORS,STRATEGIC INVESTMENT,QUALSERV CONSULTING LTD,446273,11250,719067718,P108009-SERVICE-Contractor: Thomas Greenall
BIS,Met Office,2020-09-10,04 CONTRACTORS,STRATEGIC INVESTMENT,QUALSERV CONSULTING LTD,446346,11393.28,719067718,P107880-SERVICE-Contractor: Michelle Broughton
BIS,Met Office,2020-09-30,04 CONTRACTORS,STRATEGIC INVESTMENT,REED,446726,7600,835515525,P107327-SERVICE-Contractor: Julia Bickley
BIS,Met Office,2020-09-24,04 CONTRACTORS,STRATEGIC INVESTMENT,REED,444862,8000,835515525,P107327-SERVICE-Contractor: Julia Bickley
BIS,Met Office,2020-09-24,04 CONTRACTORS,STRATEGIC INVESTMENT,REED,446966,8000,835515525,P107327-SERVICE-Contractor: Julia Bickley
BIS,Met Office,2020-09-24,04 CONTRACTORS,STRATEGIC INVESTMENT,ROWE IT LTD,446879,11250,924964394,P108314-SERVICE-API Management - Implementation Support
BIS,Met Office,2020-09-10,11 SERVICES,STRATEGIC INVESTMENT,ROWE IT LTD,446284,72412.5,924964394,P108325-SERVICE-DOS3 - Met Office CDA - SOW3.1
BIS,Met Office,2020-09-17,11 SERVICES,STRATEGIC INVESTMENT,SCIENCE & TECHNOLOGY FACILITIES COUNCIL,446512,37616,618367325,P105810-SERVICE-Development of the P-Syclone Software
BIS,Met Office,2020-09-03,11 SERVICES,STRATEGIC INVESTMENT,SOFTCAT LTD,446173,336.62,491848503,P108340-SERVICE-ServiceNow professional services support for
BIS,Met Office,2020-09-03,11 SERVICES,STRATEGIC INVESTMENT,SOFTCAT LTD,446260,2524.65,491848503,P108340-SERVICE-ServiceNow professional services support for
BIS,Met Office,2020-09-10,04 CONTRACTORS,STRATEGIC INVESTMENT,SOLOS CONSULTANTS LTD,446463,9100,812035476,P108230-SERVICE-Contractor: Suzanne Easton
BIS,Met Office,2020-09-17,04 CONTRACTORS,STRATEGIC INVESTMENT,SOLOS CONSULTANTS LTD,446519,9437.82,812035476,P108181-SERVICE-Contractor: Carol Rosati
BIS,Met Office,2020-09-17,04 CONTRACTORS,STRATEGIC INVESTMENT,SOLOS CONSULTANTS LTD,446491,9630.72,812035476,P108356-SERVICE-Contractor: Tayo Olatimilehin
BIS,Met Office,2020-09-10,04 CONTRACTORS,STRATEGIC INVESTMENT,SOLOS CONSULTANTS LTD,446468,10508.16,812035476,P108371-SERVICE-Contractor: Kevin Shute
BIS,Met Office,2020-09-17,04 CONTRACTORS,STRATEGIC INVESTMENT,SOLOS CONSULTANTS LTD,446517,10786.08,812035476,P108370-SERVICE-Contractor: Simon Backhouse
BIS,Met Office,2020-09-17,04 CONTRACTORS,STRATEGIC INVESTMENT,SOLOS CONSULTANTS LTD,446484,12558,812035476,P107951-SERVICE-Contractor: Andrew McMillan
BIS,Met Office,2020-09-17,04 CONTRACTORS,STRATEGIC INVESTMENT,SOLOS CONSULTANTS LTD,446471,16663.2,812035476,P108218-SERVICE-Contractor: Simon Vrij
BIS,Met Office,2020-09-17,04 CONTRACTORS,STRATEGIC INVESTMENT,SOLOS CONSULTANTS LTD,446475,18135,812035476,P108131-SERVICE-Contractor: John Nolan
BIS,Met Office,2020-09-24,04 CONTRACTORS,STRATEGIC INVESTMENT,WA CONSULTANTS LTD,446942,4518.9,876328977,P108383-SERVICE-Contractor: Madan Chandrashekar
BIS,Met Office,2020-09-10,04 CONTRACTORS,STRATEGIC INVESTMENT,WA CONSULTANTS LTD,446351,6160,876328977,P107670-SERVICE-Contractor: Michael Stitfall
BIS,Met Office,2020-09-17,04 CONTRACTORS,STRATEGIC INVESTMENT,WA CONSULTANTS LTD,446735,6778.35,876328977,P108383-SERVICE-Contractor: Madan Chandrashekar
BIS,Met Office,2020-09-24,04 CONTRACTORS,STRATEGIC INVESTMENT,WA CONSULTANTS LTD,446874,7480,876328977,P107828-SERVICE-Contractor: Dean Piper
BIS,Met Office,2020-09-30,04 CONTRACTORS,STRATEGIC INVESTMENT,WA CONSULTANTS LTD,447174,13500,876328977,P108219-SERVICE-Contractor: Fraser Houchen
BIS,Met Office,2020-09-03,08 SOFTWARE LICENCES,STRATEGIC INVESTMENT,WSO2 (UK) LTD,445684,110903,977308971,P108313-SERVICE-WSO2 License & Support for Year 1
BIS,Met Office,2020-09-24,11 SERVICES,SUPERCOMPUTING,Arup,446999,2625.62,524461265,P107988-SERVICE-Umbrella HPC Tender Evaluation Assistance
BIS,Met Office,2020-09-10,11 SERVICES,SUPERCOMPUTING,Arup,446495,12902.75,524461265,P107988-SERVICE-Umbrella HPC Tender Evaluation Assistance
BIS,Met Office,2020-09-24,11 SERVICES,SUPERCOMPUTING,HOGAN LOVELLS INTERNATIONAL LLP,446780,0.84,GB123371543,P107414-SERVICE-Total Disbursements  and Charges
BIS,Met Office,2020-09-24,11 SERVICES,SUPERCOMPUTING,HOGAN LOVELLS INTERNATIONAL LLP,446779,72,GB123371543,P107414-SERVICE-Disbursements
BIS,Met Office,2020-09-30,11 SERVICES,SUPERCOMPUTING,HOGAN LOVELLS INTERNATIONAL LLP,445441,831.15,GB123371543,P108275-SERVICE-Interface with Mo and CT for planning work ac
BIS,Met Office,2020-09-30,11 SERVICES,SUPERCOMPUTING,HOGAN LOVELLS INTERNATIONAL LLP,446781,852.99,GB123371543,P107420-SERVICE-Del I Location of Supercomputer
BIS,Met Office,2020-09-24,11 SERVICES,SUPERCOMPUTING,HOGAN LOVELLS INTERNATIONAL LLP,446780,3167.82,GB123371543,P107414-SERVICE-Disbursements
BIS,Met Office,2020-09-10,11 SERVICES,SUPERCOMPUTING,HOGAN LOVELLS INTERNATIONAL LLP,446439,4150.42,GB123371543,P108275-SERVICE-Supporting the Procurement Process
BIS,Met Office,2020-09-10,11 SERVICES,SUPERCOMPUTING,HOGAN LOVELLS INTERNATIONAL LLP,446439,5290.33,GB123371543,P108275-SERVICE-Interface with MO and CT for planning purpose
BIS,Met Office,2020-09-30,11 SERVICES,SUPERCOMPUTING,HOGAN LOVELLS INTERNATIONAL LLP,445441,7008.34,GB123371543,P108275-SERVICE-Clarify derogations with tenderers
BIS,Met Office,2020-09-10,11 SERVICES,SUPERCOMPUTING,HOGAN LOVELLS INTERNATIONAL LLP,446439,11759.86,GB123371543,P108275-SERVICE-Legal Evaluation
BIS,Met Office,2020-09-30,11 SERVICES,SUPERCOMPUTING,HOGAN LOVELLS INTERNATIONAL LLP,445441,17158.32,GB123371543,P108275-SERVICE-Interface with MO and CT for planning purpose
BIS,Met Office,2020-09-10,11 SERVICES,SUPERCOMPUTING,HOGAN LOVELLS INTERNATIONAL LLP,446439,19365.51,GB123371543,P108275-SERVICE-Legal complaint - July 2020
BIS,Met Office,2020-09-30,11 SERVICES,SUPERCOMPUTING,HOGAN LOVELLS INTERNATIONAL LLP,445441,24070.76,GB123371543,P108275-SERVICE-DD3
BIS,Met Office,2020-09-30,11 SERVICES,SUPERCOMPUTING,HOGAN LOVELLS INTERNATIONAL LLP,445441,43736.15,GB123371543,P108275-SERVICE-Supporting the Procurement Process
BIS,Met Office,2020-09-10,11 SERVICES,SUPERCOMPUTING,HOGAN LOVELLS INTERNATIONAL LLP,446439,63773.97,GB123371543,P108275-SERVICE-Positions developed for dialogue process
BIS,Met Office,2020-09-30,11 SERVICES,SUPERCOMPUTING,HOGAN LOVELLS INTERNATIONAL LLP,445441,72064.67,GB123371543,P108275-SERVICE-Competitive Dialogue Engagement
BIS,Met Office,2020-09-30,11 SERVICES,SUPERCOMPUTING,HOGAN LOVELLS INTERNATIONAL LLP,445441,154678.61,GB123371543,P108275-SERVICE-Legal Evaluation
BIS,Met Office,2020-09-10,11 SERVICES,SUPERCOMPUTING,HOGAN LOVELLS INTERNATIONAL LLP,446439,160777.41,GB123371543,P108275-SERVICE-Competitive Dialogue Engagement
BIS,Met Office,2020-09-10,04 CONTRACTORS,SUPERCOMPUTING,WA CONSULTANTS LTD,446255,18652,876328977,P107789-SERVICE-Contractor: Mark Hunt
BIS,Met Office,2020-09-17,11 SERVICES,TECHNOLOGY,AKAMAI TECHNOLOGIES LTD,446426,4918.08,745091237,P108188-SERVICE-CDN contract 01/06/20 to 31/05/22 - SFWEB3 16
BIS,Met Office,2020-09-17,11 SERVICES,TECHNOLOGY,AKAMAI TECHNOLOGIES LTD,446426,25819.95,745091237,P108188-SERVICE-CDN contract 01/06/20 to 31/05/22 - SFWEBO 84
BIS,Met Office,2020-09-02,11 SERVICES,TECHNOLOGY,AMAZON WEB SERVICES INC.,9901,0.55,N/A,C008288-SERVICE-AWS Cloud Usage Costs - April 2020 to Septemb
BIS,Met Office,2020-09-30,11 SERVICES,TECHNOLOGY,AMAZON WEB SERVICES INC.,9919,0.55,N/A,C008288-SERVICE-AWS Cloud Usage Costs - April 2020 to Septemb
BIS,Met Office,2020-09-23,11 SERVICES,TECHNOLOGY,AMAZON WEB SERVICES INC.,9905,44.32,N/A,C008288-SERVICE-AWS Cloud Usage Costs - April 2020 to Septemb
BIS,Met Office,2020-09-16,11 SERVICES,TECHNOLOGY,AMAZON WEB SERVICES INC.,9896,57.97,N/A,C008288-SERVICE-AWS Cloud Usage Costs - April 2020 to Septemb
BIS,Met Office,2020-09-09,11 SERVICES,TECHNOLOGY,AMAZON WEB SERVICES INC.,9893,458.16,N/A,C008288-SERVICE-AWS Cloud Usage Costs - April 2020 to Septemb
BIS,Met Office,2020-09-02,11 SERVICES,TECHNOLOGY,AMAZON WEB SERVICES INC.,9881,979.57,N/A,C008288-SERVICE-AWS Cloud Usage Costs - April 2020 to Septemb
BIS,Met Office,2020-09-30,11 SERVICES,TECHNOLOGY,AMAZON WEB SERVICES INC.,9914,1130.41,N/A,C008288-SERVICE-AWS Cloud Usage Costs - April 2020 to Septemb
BIS,Met Office,2020-09-23,11 SERVICES,TECHNOLOGY,AMAZON WEB SERVICES INC.,9906,1262.98,N/A,C008288-SERVICE-AWS Cloud Usage Costs - April 2020 to Septemb
BIS,Met Office,2020-09-16,11 SERVICES,TECHNOLOGY,AMAZON WEB SERVICES INC.,9900,1861.23,N/A,C008288-SERVICE-AWS Cloud Usage Costs - April 2020 to Septemb
BIS,Met Office,2020-09-02,11 SERVICES,TECHNOLOGY,AMAZON WEB SERVICES INC.,9902,11460.79,N/A,C008288-SERVICE-AWS - Enterprise Support - April 2020 to Marc
BIS,Met Office,2020-09-16,11 SERVICES,TECHNOLOGY,AMAZON WEB SERVICES INC.,9899,12347.09,N/A,C008288-SERVICE-AWS Cloud Usage Costs - April 2020 to Septemb
BIS,Met Office,2020-09-02,11 SERVICES,TECHNOLOGY,AMAZON WEB SERVICES INC.,9903,86095.3,N/A,C008288-SERVICE-AWS Cloud Usage Costs - April 2020 to Septemb
BIS,Met Office,2020-09-30,11 SERVICES,TECHNOLOGY,AMAZON WEB SERVICES INC.,9913,107630.95,N/A,C008288-SERVICE-AWS Cloud Usage Costs - April 2020 to Septemb
BIS,Met Office,2020-09-03,11 SERVICES,TECHNOLOGY,BAE SYSTEMS APPLIED INTELLIGENCE LIMITED,445718,7210.4,GB641407169,P107805-SERVICE-Business Analyst Shanaz Hannan 71 days
BIS,Met Office,2020-09-17,11 SERVICES,TECHNOLOGY,BAE SYSTEMS APPLIED INTELLIGENCE LIMITED,446626,9000,GB641407169,P108391-SERVICE-Contractor: Abdul Ahmed
BIS,Met Office,2020-09-17,11 SERVICES,TECHNOLOGY,BAE SYSTEMS APPLIED INTELLIGENCE LIMITED,446621,13200,GB641407169,P108295-SERVICE-Contractor: Mihir Asser
BIS,Met Office,2020-09-17,11 SERVICES,TECHNOLOGY,BAE SYSTEMS APPLIED INTELLIGENCE LIMITED,446624,13200,GB641407169,P108382-SERVICE-Contractor: Rebecca Foren-Coutts
BIS,Met Office,2020-09-10,08 SOFTWARE LICENCES,TECHNOLOGY,BOXXE,446174,132,734245248,P108058-SERVICE-EMS3-CSP Enterprise Mobility + Security E3
BIS,Met Office,2020-09-10,08 SOFTWARE LICENCES,TECHNOLOGY,BOXXE,446174,352,734245248,P108058-SERVICE-O365ENTE3-CSP Office 365 E3
BIS,Met Office,2020-09-24,07 EQUIPMENT,TECHNOLOGY,BOXXE,446401,9896.25,734245248,P108262-SERVICE-24089-999-999 Jabra Evolve2 40 USB-A MS Stere
BIS,Met Office,2020-09-24,08 SOFTWARE LICENCES,TECHNOLOGY,CLEARVISION (CM) LIMITED,447001,1377.73,881364801,P108564-SERVICE-Atlassian Cloud additional licenses (Confluen
BIS,Met Office,2020-09-24,11 SERVICES,TECHNOLOGY,CLOUDREACH EUROPE LIMITED,446883,535.55,978187168,P107973-SERVICE-Cloudreach - CloudHealth Charges - April 2020
BIS,Met Office,2020-09-24,11 SERVICES,TECHNOLOGY,CLOUDREACH EUROPE LIMITED,446883,2386.55,978187168,P108573-SERVICE-Cloudreach - CloudHealth Charges - September
BIS,Met Office,2020-09-24,11 SERVICES,TECHNOLOGY,CLOUDREACH EUROPE LIMITED,446937,4000,978187168,P107975-SERVICE-Cloudreach - Alert Logic Support - April 2020
BIS,Met Office,2020-09-24,11 SERVICES,TECHNOLOGY,CLOUDREACH EUROPE LIMITED,446782,6952.28,978187168,P107972-SERVICE-Cloudreach - Operational Services for Mobile
BIS,Met Office,2020-09-17,11 SERVICES,TECHNOLOGY,CLOUDREACH EUROPE LIMITED,446700,8624.12,978187168,P107971-SERVICE-Cloudreach - AWS Usage - Mobile App & FGS - A
BIS,Met Office,2020-09-24,07 EQUIPMENT,TECHNOLOGY,COMPUTACENTER (UK) LTD,446226,541.32,490334648,P108429-SERVICE-Dell Thunderbolt Dock WD19TB docking station
BIS,Met Office,2020-09-24,07 EQUIPMENT,TECHNOLOGY,COMPUTACENTER (UK) LTD,446226,1136.37,490334648,"P108429-SERVICE-Dell 27 Monitor - U2720Q 27"" Black"
BIS,Met Office,2020-09-30,10 EQUIPMENT MAINTENANCE,TECHNOLOGY,COMPUTACENTER (UK) LTD,447222,1601.03,490334648,P107876-SERVICE-Single Source Maintenance 1/7/20 to 30/9/20
BIS,Met Office,2020-09-24,08 SOFTWARE LICENCES,TECHNOLOGY,COMPUTACENTER (UK) LTD,446882,6192.16,490334648,P108505-SERVICE-Radarnet - RedHat resilient storage
BIS,Met Office,2020-09-24,07 EQUIPMENT,TECHNOLOGY,COMPUTACENTER (UK) LTD,446226,8322.3,490334648,P108429-SERVICE-Mobile Precision 5750 CTO BASE
BIS,Met Office,2020-09-30,07 EQUIPMENT,TECHNOLOGY,COMPUTACENTER (UK) LTD,447152,8838.4,490334648,P108097-SERVICE-64 x 32GB Memory DIMMS
BIS,Met Office,2020-09-24,07 EQUIPMENT,TECHNOLOGY,COMPUTACENTER (UK) LTD,446125,8856,490334648,P108231-SERVICE-Jabra Evolve 40 MS stereo Headset - onear - w
BIS,Met Office,2020-09-10,08 SOFTWARE LICENCES,TECHNOLOGY,DXC TECHNOLOGY,446144,29682.51,GB432995915,"P107997-SERVICE-ServiceNow - Additional 37 ""IT Service Manage"
BIS,Met Office,2020-09-10,08 SOFTWARE LICENCES,TECHNOLOGY,DXC TECHNOLOGY,446142,35392.5,GB432995915,P108235-SERVICE-ServiceNow IT Service Management Standard � F
BIS,Met Office,2020-09-30,08 SOFTWARE LICENCES,TECHNOLOGY,Esri (Uk) Ltd,447118,82992.02,787430791,P108587-SERVICE-Annual renewal of ESR software licences 01/10
BIS,Met Office,2020-09-10,04 CONTRACTORS,TECHNOLOGY,FDM GROUP LIMITED,446405,540,583540529,P107563-SERVICE-Contractor: Rowan Alker
BIS,Met Office,2020-09-03,04 CONTRACTORS,TECHNOLOGY,FDM GROUP LIMITED,446220,1350,583540529,P107563-SERVICE-Contractor: Rowan Alker
BIS,Met Office,2020-09-10,04 CONTRACTORS,TECHNOLOGY,FDM GROUP LIMITED,446407,3240,583540529,P107270-SERVICE-Contractor: Joshua Hogarth
BIS,Met Office,2020-09-10,04 CONTRACTORS,TECHNOLOGY,FDM GROUP LIMITED,446406,4488.75,583540529,P107537-SERVICE-Contractor: Gonzalo Nogueras Malpesa
BIS,Met Office,2020-09-24,04 CONTRACTORS,TECHNOLOGY,FDM GROUP LIMITED,446946,5130,583540529,P106850-SERVICE-Contractor: Jay Cork
BIS,Met Office,2020-09-10,04 CONTRACTORS,TECHNOLOGY,FDM GROUP LIMITED,446408,5400,583540529,P107491-SERVICE-Contractor: Hendry Lam
BIS,Met Office,2020-09-17,07 EQUIPMENT,TECHNOLOGY,FIBRE TECHNOLOGIES LIMITED,446508,10,572640635,P108482-SERVICE-DELIVERY CHARGE Fully Insured UK Delivery
BIS,Met Office,2020-09-17,07 EQUIPMENT,TECHNOLOGY,FIBRE TECHNOLOGIES LIMITED,446508,691.6,572640635,P108482-SERVICE-SFP+ SR 850nm 10G Ethernet MMF CISCO Coded -
BIS,Met Office,2020-09-10,04 CONTRACTORS,TECHNOLOGY,GCS IT RECRUITMENT SPECIALISTS LTD,446410,4550,896156575,P107963-SERVICE-Contractor: Stephanie Jacques
BIS,Met Office,2020-09-17,04 CONTRACTORS,TECHNOLOGY,GCS IT RECRUITMENT SPECIALISTS LTD,446710,6370,896156575,P107963-SERVICE-Contractor: Stephanie Jacques
BIS,Met Office,2020-09-10,04 CONTRACTORS,TECHNOLOGY,GCS IT RECRUITMENT SPECIALISTS LTD,446411,12000,896156575,P107651-SERVICE-Contractor: James Ferguson
BIS,Met Office,2020-09-03,08 SOFTWARE LICENCES,TECHNOLOGY,GOOGLE IRELAND LTD,446197,36.68,6388047V,C007448-SERVICE-Extension of Google Cloud Services for WOW
BIS,Met Office,2020-09-10,04 CONTRACTORS,TECHNOLOGY,HAYS SPECIALIST RECRUITMENT LTD,446344,226.5,773695871,P108207-SERVICE-Contractor: Hellen Jones
BIS,Met Office,2020-09-17,04 CONTRACTORS,TECHNOLOGY,HAYS SPECIALIST RECRUITMENT LTD,446633,369.95,773695871,P108270-SERVICE-Contractor: Kelly McGurk
BIS,Met Office,2020-09-24,04 CONTRACTORS,TECHNOLOGY,HAYS SPECIALIST RECRUITMENT LTD,446866,437.9,773695871,P108270-SERVICE-Contractor: Kelly McGurk
BIS,Met Office,2020-09-03,04 CONTRACTORS,TECHNOLOGY,HAYS SPECIALIST RECRUITMENT LTD,446152,468.1,773695871,P108207-SERVICE-Contractor: Hellen Jones
BIS,Met Office,2020-09-17,04 CONTRACTORS,TECHNOLOGY,HAYS SPECIALIST RECRUITMENT LTD,446631,468.1,773695871,P108207-SERVICE-Contractor: Hellen Jones
BIS,Met Office,2020-09-30,04 CONTRACTORS,TECHNOLOGY,HAYS SPECIALIST RECRUITMENT LTD,447022,558.7,773695871,P108207-SERVICE-Contractor: Hellen Jones
BIS,Met Office,2020-09-24,04 CONTRACTORS,TECHNOLOGY,HAYS SPECIALIST RECRUITMENT LTD,446867,558.71,773695871,P108207-SERVICE-Contractor: Hellen Jones
BIS,Met Office,2020-09-03,04 CONTRACTORS,TECHNOLOGY,HAYS SPECIALIST RECRUITMENT LTD,446153,566.25,773695871,P108270-SERVICE-Contractor: Kelly McGurk
BIS,Met Office,2020-09-10,04 CONTRACTORS,TECHNOLOGY,HAYS SPECIALIST RECRUITMENT LTD,446425,566.25,773695871,P108270-SERVICE-Contractor: Kelly McGurk
BIS,Met Office,2020-09-30,04 CONTRACTORS,TECHNOLOGY,HAYS SPECIALIST RECRUITMENT LTD,447024,581.35,773695871,P108270-SERVICE-Contractor: Kelly McGurk
BIS,Met Office,2020-09-24,11 SERVICES,TECHNOLOGY,IBM UNITED KINGDOM LTD,446924,6062.7,107328000,P107407-SERVICE-IBM API Connect Cloud Service
BIS,Met Office,2020-09-10,08 SOFTWARE LICENCES,TECHNOLOGY,IBM UNITED KINGDOM LTD,446500,9579.7,107328000,P108317-SERVICE-Mainframe Usage Costs for z/OS Monthly/Qtr ch
BIS,Met Office,2020-09-30,08 SOFTWARE LICENCES,TECHNOLOGY,Idox Software Ltd,446985,1654,766800804,P108549-SERVICE-Hosted Search renewal 30/11/20 - 29/11/21
BIS,Met Office,2020-09-09,11 SERVICES,TECHNOLOGY,INFOTECH RESEARCH GROUP INC,446110,9600,-,-
BIS,Met Office,2020-09-10,11 SERVICES,TECHNOLOGY,NCC SERVICES  LIMITED,446400,1530,732334556,P108254-SERVICE-Escrow Agreement 65052 renewal 2020
BIS,Met Office,2020-09-30,08 SOFTWARE LICENCES,TECHNOLOGY,NINIAN SOLUTIONS LIMITED T/A HUDDLE,447111,57780,887875830,P108569-SERVICE-Huddle package: 150 internal users; 10 extern
BIS,Met Office,2020-09-30,10 EQUIPMENT MAINTENANCE,TECHNOLOGY,ORACLE CORPORATION UK LTD,447119,205.51,391313073,C007715-SERVICE-Oracle Support Contract 7411550 period 6/10/2
BIS,Met Office,2020-09-30,10 EQUIPMENT MAINTENANCE,TECHNOLOGY,ORACLE CORPORATION UK LTD,447120,7163.93,391313073,C007715-SERVICE-Oracle Support Contract 12465933 period 13/10
BIS,Met Office,2020-09-17,04 CONTRACTORS,TECHNOLOGY,OUTSOURCE UK LIMITED,446653,2051.3,576118722,P108357-SERVICE-Contractor: Dan Small
BIS,Met Office,2020-09-17,04 CONTRACTORS,TECHNOLOGY,OUTSOURCE UK LIMITED,446649,2250,576118722,P107590-SERVICE-Assignment: Robert McDonald
BIS,Met Office,2020-09-03,04 CONTRACTORS,TECHNOLOGY,OUTSOURCE UK LIMITED,446207,4500,576118722,P108239-SERVICE-Contractor: Esinam Aboni
BIS,Met Office,2020-09-30,04 CONTRACTORS,TECHNOLOGY,OUTSOURCE UK LIMITED,447200,5163.06,576118722,P108140-SERVICE-Contractor: Claire Darch
BIS,Met Office,2020-09-17,04 CONTRACTORS,TECHNOLOGY,OUTSOURCE UK LIMITED,446650,6470.48,576118722,P108316-SERVICE-Contractor: Robert McDonald
BIS,Met Office,2020-09-03,04 CONTRACTORS,TECHNOLOGY,OUTSOURCE UK LIMITED,446214,6657.63,576118722,P108140-SERVICE-Contractor: Claire Darch
BIS,Met Office,2020-09-30,04 CONTRACTORS,TECHNOLOGY,OUTSOURCE UK LIMITED,447202,6962.38,576118722,P108294-SERVICE-Contractor: Rachel Thompson
BIS,Met Office,2020-09-17,04 CONTRACTORS,TECHNOLOGY,OUTSOURCE UK LIMITED,446654,7150.5,576118722,P107842-SERVICE-Contractor: Sandra Whitington
BIS,Met Office,2020-09-03,04 CONTRACTORS,TECHNOLOGY,OUTSOURCE UK LIMITED,446213,7362.96,576118722,P107090-SERVICE-Contractor: Scott Cridland-Smith
BIS,Met Office,2020-09-17,04 CONTRACTORS,TECHNOLOGY,OUTSOURCE UK LIMITED,446652,7384.68,576118722,P106829-SERVICE-Contractor: Dan Small
BIS,Met Office,2020-09-30,04 CONTRACTORS,TECHNOLOGY,OUTSOURCE UK LIMITED,447217,7794.94,576118722,P108357-SERVICE-Contractor: Dan Small
BIS,Met Office,2020-09-30,04 CONTRACTORS,TECHNOLOGY,OUTSOURCE UK LIMITED,447204,8255.44,576118722,P108316-SERVICE-Contractor: Robert McDonald
BIS,Met Office,2020-09-30,04 CONTRACTORS,TECHNOLOGY,OUTSOURCE UK LIMITED,447199,8478.56,576118722,P107090-SERVICE-Contractor: Scott Cridland-Smith
BIS,Met Office,2020-09-30,04 CONTRACTORS,TECHNOLOGY,OUTSOURCE UK LIMITED,447206,8543.52,576118722,P107052-SERVICE-Contractor: Ben Cooper
BIS,Met Office,2020-09-30,04 CONTRACTORS,TECHNOLOGY,OUTSOURCE UK LIMITED,447193,8873.92,576118722,P108362-SERVICE-Contractor: Julian Dixon
BIS,Met Office,2020-09-30,04 CONTRACTORS,TECHNOLOGY,OUTSOURCE UK LIMITED,447197,9500,576118722,P108348-SERVICE-Contractor: Daniel Ashby
BIS,Met Office,2020-09-30,04 CONTRACTORS,TECHNOLOGY,OUTSOURCE UK LIMITED,447203,9841.05,576118722,P107640-SERVICE-Contractor: James Roberts
BIS,Met Office,2020-09-17,04 CONTRACTORS,TECHNOLOGY,OUTSOURCE UK LIMITED,446648,10932.88,576118722,P107134-SERVICE-Contractor: David Hardy
BIS,Met Office,2020-09-03,04 CONTRACTORS,TECHNOLOGY,OUTSOURCE UK LIMITED,446217,11156,576118722,P107231-SERVICE-contractor: Keith Lynn
BIS,Met Office,2020-09-03,04 CONTRACTORS,TECHNOLOGY,OUTSOURCE UK LIMITED,446212,11540.48,576118722,P108250-SERVICE-Contractor: Sonia Hendy-Keeney
BIS,Met Office,2020-09-03,04 CONTRACTORS,TECHNOLOGY,OUTSOURCE UK LIMITED,446208,12250,576118722,P108348-SERVICE-Contractor: Daniel Ashby
BIS,Met Office,2020-09-30,04 CONTRACTORS,TECHNOLOGY,OUTSOURCE UK LIMITED,447205,12350,576118722,P108179-SERVICE-Contractor: Simon Harris
BIS,Met Office,2020-09-03,04 CONTRACTORS,TECHNOLOGY,OUTSOURCE UK LIMITED,446211,12564,576118722,P107052-SERVICE-Contractor: Ben Cooper
BIS,Met Office,2020-09-03,04 CONTRACTORS,TECHNOLOGY,OUTSOURCE UK LIMITED,446215,14950,576118722,P108179-SERVICE-Contractor: Simon Harris
BIS,Met Office,2020-09-30,04 CONTRACTORS,TECHNOLOGY,OUTSOURCE UK LIMITED,447212,16150,576118722,"P108003-SERVICE-Mark McLeod new contractor, 6/4/20 to 2/4/21"
BIS,Met Office,2020-09-10,08 SOFTWARE LICENCES,TECHNOLOGY,PRESENTATION CARTOGRAPHY LTD,446122,1250,-,-
BIS,Met Office,2020-09-30,04 CONTRACTORS,TECHNOLOGY,QUALSERV CONSULTING LTD,447186,6427.7,719067718,P107064-SERVICE-Bola Akolsile New Contractor (07/10/2019-02/1
BIS,Met Office,2020-09-30,04 CONTRACTORS,TECHNOLOGY,QUALSERV CONSULTING LTD,447157,7780.9,719067718,P107064-SERVICE-Bola Akolsile New Contractor (07/10/2019-02/1
BIS,Met Office,2020-09-30,04 CONTRACTORS,TECHNOLOGY,QUALSERV CONSULTING LTD,447132,8750,719067718,P108124-SERVICE-Contractor: Shahbaz Ahmad
BIS,Met Office,2020-09-10,04 CONTRACTORS,TECHNOLOGY,QUALSERV CONSULTING LTD,446272,9772.65,719067718,P107336-SERVICE-Contractor: Simon Lithgow
BIS,Met Office,2020-09-30,04 CONTRACTORS,TECHNOLOGY,QUALSERV CONSULTING LTD,447184,9772.65,719067718,P107336-SERVICE-Contractor: Simon Lithgow
BIS,Met Office,2020-09-30,04 CONTRACTORS,TECHNOLOGY,QUALSERV CONSULTING LTD,447185,10087.8,719067718,P107766-SERVICE-Contractor: Sean Walters
BIS,Met Office,2020-09-10,04 CONTRACTORS,TECHNOLOGY,QUALSERV CONSULTING LTD,446276,11726.16,719067718,P108152-SERVICE-Contractor: Ed John
BIS,Met Office,2020-09-30,04 CONTRACTORS,TECHNOLOGY,QUALSERV CONSULTING LTD,447134,13362.54,719067718,P107926-SERVICE-Contractor; Adrian Ball
BIS,Met Office,2020-09-10,04 CONTRACTORS,TECHNOLOGY,QUALSERV CONSULTING LTD,446269,13648.2,719067718,P107766-SERVICE-Contractor: Sean Walters
BIS,Met Office,2020-09-24,04 CONTRACTORS,TECHNOLOGY,REED,446124,-34.5,835515525,P107368-SERVICE-Contractor: Adam Charles
BIS,Met Office,2020-09-30,04 CONTRACTORS,TECHNOLOGY,REED,446726,4587,835515525,P108342-SERVICE-Contractor: Nigel Dixon
BIS,Met Office,2020-09-24,04 CONTRACTORS,TECHNOLOGY,REED,446966,9174,835515525,P108342-SERVICE-Contractor: Nigel Dixon
BIS,Met Office,2020-09-30,04 CONTRACTORS,TECHNOLOGY,REED,446726,10281.6,835515525,P108154-SERVICE-Contractor: Adam Charles
BIS,Met Office,2020-09-24,04 CONTRACTORS,TECHNOLOGY,REED,444862,11240,835515525,P107480-SERVICE-Contractor: Nigel Dixon
BIS,Met Office,2020-09-24,04 CONTRACTORS,TECHNOLOGY,REED,446966,12852,835515525,P108154-SERVICE-Contractor: Adam Charles
BIS,Met Office,2020-09-24,04 CONTRACTORS,TECHNOLOGY,REED,444862,12886.5,835515525,P108154-SERVICE-Contractor: Adam Charles
BIS,Met Office,2020-09-30,11 SERVICES,TECHNOLOGY,SEC-1 LTD,447154,11847.02,777853369,P108028-SERVICE-Met Office CDN Penetration Test
BIS,Met Office,2020-09-17,04 CONTRACTORS,TECHNOLOGY,SOLOS CONSULTANTS LTD,446466,6600,812035476,P108346-SERVICE-Contractor: Shaun Pendry
BIS,Met Office,2020-09-17,04 CONTRACTORS,TECHNOLOGY,SOLOS CONSULTANTS LTD,446477,7790,812035476,P108022-SERVICE-Contractor: Michael Cunningham
BIS,Met Office,2020-09-17,04 CONTRACTORS,TECHNOLOGY,SOLOS CONSULTANTS LTD,446476,7837.6,812035476,P108380-SERVICE-Contractor: Rob Winson
BIS,Met Office,2020-09-17,04 CONTRACTORS,TECHNOLOGY,SOLOS CONSULTANTS LTD,446487,9229.44,812035476,P108122-SERVICE-Contractor: Chimzi Chindah
BIS,Met Office,2020-09-17,04 CONTRACTORS,TECHNOLOGY,SOLOS CONSULTANTS LTD,446473,10070,812035476,P108030-SERVICE-Contractor: Gina Nason
BIS,Met Office,2020-09-17,04 CONTRACTORS,TECHNOLOGY,SOLOS CONSULTANTS LTD,446488,10400,812035476,P108138-SERVICE-Contractor: Andy Margetts
BIS,Met Office,2020-09-17,04 CONTRACTORS,TECHNOLOGY,SOLOS CONSULTANTS LTD,446482,11490.57,812035476,P107738-SERVICE-Contractor: Glyn Morgan
BIS,Met Office,2020-09-17,04 CONTRACTORS,TECHNOLOGY,SOLOS CONSULTANTS LTD,446480,12506,812035476,P107980-SERVICE-Contractor: John Baker
BIS,Met Office,2020-09-17,04 CONTRACTORS,TECHNOLOGY,SOLOS CONSULTANTS LTD,446494,13825.35,812035476,P107203-SERVICE-Contractor: Sean Rowlands
BIS,Met Office,2020-09-17,04 CONTRACTORS,TECHNOLOGY,SOLOS CONSULTANTS LTD,446483,14398.56,812035476,P108284-SERVICE-Contractor: Brendan Cush
BIS,Met Office,2020-09-17,04 CONTRACTORS,TECHNOLOGY,SOLOS CONSULTANTS LTD,446485,14943.5,812035476,P107202-SERVICE-Contractor: Chris Delaney
BIS,Met Office,2020-09-10,04 CONTRACTORS,TECHNOLOGY,SOLOS CONSULTANTS LTD,446465,15600,812035476,P107843-SERVICE-Contractor: Situl Shah
BIS,Met Office,2020-09-17,04 CONTRACTORS,TECHNOLOGY,SOLOS CONSULTANTS LTD,446518,16929.12,812035476,P107653-SERVICE-Contractor: John Crickett
BIS,Met Office,2020-09-17,04 CONTRACTORS,TECHNOLOGY,SOLOS CONSULTANTS LTD,446489,18810,812035476,P107054-SERVICE-Contractor: Lala Burchall
BIS,Met Office,2020-09-24,11 SERVICES,TECHNOLOGY,SSE CONTRACTING LTD,446855,10137.45,570118464,P106309-SERVICE-Data cabling Services - April 2019 to March 2
BIS,Met Office,2020-09-30,INFORMATION TECHNOLOGY,TECHNOLOGY,TELEFONICA O2 UK LIMITED,447153,700,778603785,P108581-SERVICE-Nokia 1.3
BIS,Met Office,2020-09-30,INFORMATION TECHNOLOGY,TECHNOLOGY,TELEFONICA O2 UK LIMITED,447153,12725,778603785,P108581-SERVICE-iPhone XR
BIS,Met Office,2020-09-10,INFORMATION TECHNOLOGY,TECHNOLOGY,TELEFONICA O2 UK LIMITED,446367,34200,778603785,P108463-SERVICE-iPhone SE 64GB Black - MX9R2B/A
BIS,Met Office,2020-09-03,11 SERVICES,TECHNOLOGY,THE KNOWLEDGE ACADEMY LIMITED,445897,4000,GB970667487,P108451-SERVICE-Oracle Database 12c: Administration 28 Septem
BIS,Met Office,2020-09-03,11 SERVICES,TECHNOLOGY,UKCLOUD LTD,446232,1658.4,172647982,P107846-SERVICE-UKCLOUD service for MOSRS 20/21
BIS,Met Office,2020-09-24,04 CONTRACTORS,TECHNOLOGY,WA CONSULTANTS LTD,446771,5500,876328977,P108075-SERVICE-Contractor: Luke Weatherburn-Bird
BIS,Met Office,2020-09-10,04 CONTRACTORS,TECHNOLOGY,WA CONSULTANTS LTD,446358,7630,876328977,P107711-SERVICE-Contractor: Alan Vance
BIS,Met Office,2020-09-24,04 CONTRACTORS,TECHNOLOGY,WA CONSULTANTS LTD,446770,8800,876328977,P108353-SERVICE-Contractor: Nathan Collings
BIS,Met Office,2020-09-10,04 CONTRACTORS,TECHNOLOGY,WA CONSULTANTS LTD,446257,9450,876328977,P107343-SERVICE-Contractor: Dale Shipp
BIS,Met Office,2020-09-17,04 CONTRACTORS,TECHNOLOGY,WA CONSULTANTS LTD,446736,9500,876328977,P108010-SERVICE-Contractor: Janet Blackhall
BIS,Met Office,2020-09-17,04 CONTRACTORS,TECHNOLOGY,WA CONSULTANTS LTD,446501,10000,876328977,P108075-SERVICE-Contractor: Luke Weatherburn-Bird
BIS,Met Office,2020-09-03,04 CONTRACTORS,TECHNOLOGY,WA CONSULTANTS LTD,446199,10710,876328977,P107629-SERVICE-Contractor: John Liezers
BIS,Met Office,2020-09-03,04 CONTRACTORS,TECHNOLOGY,WA CONSULTANTS LTD,446200,10761,876328977,P108072-SERVICE-Contractor: Vince Levey
BIS,Met Office,2020-09-10,04 CONTRACTORS,TECHNOLOGY,WA CONSULTANTS LTD,446256,11124,876328977,P108132-SERVICE-Contractor: John Lucas
BIS,Met Office,2020-09-17,04 CONTRACTORS,TECHNOLOGY,WA CONSULTANTS LTD,446737,13500,876328977,P108006-SERVICE-Contractor: Andy Martin
BIS,Met Office,2020-09-10,04 CONTRACTORS,TECHNOLOGY,WA CONSULTANTS LTD,446350,13650,876328977,P108195-SERVICE-Contractor   : Mohammed Debashi
BIS,Met Office,2020-09-10,04 CONTRACTORS,TECHNOLOGY,WA CONSULTANTS LTD,446254,14000,876328977,P107835-SERVICE-Contractor: Emily Whetter
BIS,Met Office,2020-09-10,11 SERVICES,TECHNOLOGY,WIREFAST LTD,446279,2999.57,749536001,P106433-SERVICE-2 year contract renewal for WireFast Messagin
BIS,Met Office,2020-09-10,11 SERVICES,TECHNOLOGY,WIREFAST LTD,446282,5877.42,749536001,P106433-SERVICE-2 year contract renewal for WireFast Messagin
BIS,Met Office,2020-09-24,08 SOFTWARE LICENCES,TECHNOLOGY,XEBIALABS LTD,446769,11691,228794369,P108281-SERVICE-XL Deploy Annual Subscription
